{"text_format":"1","workbook":"xlsx","n_sheets":4,"sheets":["入力用","１枚目","２枚目","３枚目"],"not_rendered":{"charts":0,"images":0,"macros":1,"external_links":0,"defined_names":4,"comments":1,"pivot_tables":0},"unopened":[],"bounds":{"document_bytes":16777216,"sheet_cells":100000,"rows_first":2000,"rows_last":500,"rows_between":2000,"halvings":0,"cell_chars":16384,"cell_head_chars":4096},"cells_cut":0,"cells_raw":0,"read":"whole","date_system":"1900"}

{"sheet":"入力用","index":0,"n_rows":56,"n_cols":27,"rows_kept":56,"cut":false,"hidden":false,"merged":[[8,0,9,0],[26,0,26,1],[26,2,26,8],[1,14,1,20],[2,0,5,0],[2,2,2,10],[6,0,7,0],[6,2,6,5],[7,2,7,10],[10,0,14,0],[10,2,10,10],[11,2,11,10],[12,4,12,5],[13,2,13,10],[14,4,14,5],[14,7,14,8],[2,21,2,26],[3,2,3,10],[4,2,4,10],[5,2,5,10],[9,4,9,5],[9,7,9,8],[8,4,8,5],[8,7,8,8],[15,0,17,0],[15,2,15,10],[16,2,16,10],[17,4,17,5],[17,7,17,8],[18,0,18,1],[19,0,20,0],[19,2,19,10],[20,2,20,10],[21,0,23,0],[21,2,21,5],[22,2,22,10],[23,4,23,5],[23,7,23,8],[24,0,25,0],[24,2,24,10],[25,4,25,5],[25,7,25,8],[28,0,28,1],[28,4,28,5],[28,8,28,9],[27,2,27,10],[29,0,29,1],[30,0,30,1],[31,0,31,1],[32,0,32,1],[32,2,32,10],[33,0,33,1],[46,1,49,1],[47,3,47,6],[34,0,34,1],[34,15,34,16],[35,0,35,1],[35,6,35,10],[36,0,37,0],[37,3,37,4],[43,6,43,10],[43,15,43,16],[38,0,39,0],[39,3,39,4],[40,0,41,0],[41,3,41,4],[42,1,43,1],[43,2,43,3],[43,4,43,5],[42,0,54,0],[44,1,45,1],[45,2,45,3],[45,4,45,5],[55,0,55,1],[55,3,55,4],[52,3,52,6],[53,2,53,3],[53,4,53,10],[54,2,54,3],[54,4,54,10],[50,1,54,1],[45,6,45,10],[48,2,48,3],[48,4,48,10],[49,2,49,3],[49,4,49,10]]}
[]
[{"$f":"IF(L2=\"\",\"印刷されましたら，「ＮW控」の裏面に施設組合印および御社の社印を押印してください。\",\"必要事項をすべて入力すると，右の表示が消えます。\")","v":"必要事項をすべて入力すると，右の表示が消えます。"},null,null,null,null,null,null,null,null,null,null,{"$f":"IF(M2=\"\",\"\",M2)","v":"入力に不備があります。"},{"$f":"IF(COUNTBLANK(M3:M4)+COUNTBLANK(M7:M32)+COUNTBLANK(M33:M41)=37,\"\",\"入力に不備があります。\")","v":"入力に不備があります。"},null,"ドロップダウンリスト"]
["ご契約名義","フリガナ",null,null,null,null,null,null,null,null,null,{"$f":"IF(M3=\"\",\"\",M3)","v":"←入力してください。"},{"$f":"IF(C3=\"\",\"←入力してください。\",IF(LEN(ASC(C3))>40,\"←「゛」「゜」を含め，40文字以内としてください。\",\"\"))","v":"←入力してください。"},null,"支払方法","契約種別","業種","供給電気方式・供給電圧","本契約前の臨時契約の有無","契約決定方法","回路契約業種","回路契約計算"]
[null,"漢字",null,null,null,null,null,null,null,null,null,"←入力してください。",{"$f":"IF(C4=\"\",\"←入力してください。\",\"\")","v":"←入力してください。"},null,null,null,null,null,null,null,null,"～5回路","～10回路","11回路～","内訳１","内訳２","内訳３"]
[null,"代表者肩書",null,null,null,null,null,null,null,null,null,"ご契約者が個人名ではない場合は入力してください。",{"$f":"IF(C5=\"\",\"ご契約者が個人名ではない場合は入力してください。\",\"\")","v":"ご契約者が個人名ではない場合は入力してください。"},null,"振込用紙","従量電灯Ａ","住宅","単相2線式100Ｖ","有","ブレーカー契約（ＳＢ）","住宅",970,440,340,{"$f":"IF($C$38<6,V5*$C$38,IF($C$38<11,V5*5+W5*($C$38-5),V5*5+W5*5+X5*($C$38-10)))","v":0},{"$f":"IF($C$40<6,V5*$C$40,IF($C$40<11,V5*5+W5*($C$40-5),V5*5+W5*5+X5*($C$40-10)))","v":0},{"$f":"IF($C$42<6,V5*$C$42,IF($C$42<11,V5*5+W5*($C$42-5),V5*5+W5*5+X5*($C$42-10)))","v":0}]
[null,"代表者名",null,null,null,null,null,null,null,null,null,"ご契約者が個人名ではない場合は入力してください。",{"$f":"IF(C6=\"\",\"ご契約者が個人名ではない場合は入力してください。\",\"\")","v":"ご契約者が個人名ではない場合は入力してください。"},null,"口座振替","従量電灯Ｂ","アパート・寮","単相2線式200Ｖ","無","主開閉器契約","アパート・寮",1060,540,460,{"$f":"IF($C$38<6,V6*$C$38,IF($C$38<11,V6*5+W6*($C$38-5),V6*5+W6*5+X6*($C$38-10)))","v":0},{"$f":"IF($C$40<6,V6*$C$40,IF($C$40<11,V6*5+W6*($C$40-5),V6*5+W6*5+X6*($C$40-10)))","v":0},{"$f":"IF($C$42<6,V6*$C$42,IF($C$42<11,V6*5+W6*($C$42-5),V6*5+W6*5+X6*($C$42-10)))","v":0}]
["ご使用場所","郵便番号",null,null,null,null,null,null,null,null,null,"←入力してください。",{"$f":"IF(C7=\"\",\"←入力してください。\",IF(OR(AND(MID(C7,4,1)<>\"-\",LEN(C7)<>7),AND(MID(C7,4,1)=\"-\",LEN(C7)<>8)),\"←入力誤りです。\",\"\"))","v":"←入力してください。"},null,"クレジット","従量電灯Ｃ","商店","単相3線式100V・200V","配電Ｎｅｔ申込","回路契約","商店",1070,540,540,0,0,0]
[null,"住所",null,null,null,null,null,null,null,null,null,"←入力してください。",{"$f":"IF(C8=\"\",\"←入力してください。\",\"\")","v":"←入力してください。"},null,null,"公衆街路灯Ｂ","事務所","3相3線式200V",null,"負荷設備契約","工場",1080,510,510,0,0,0]
["電話番号","固定",null,"-",null,null,"-",null,null,null,null,"",{"$f":"IF(OR(C9=\"\",E9=\"\",H9=\"\"),\"\",IF(OR(LEN(H9)<>4,LEN(C9)+LEN(E9)+LEN(H9)<>10),\"←入力内容が不正です。\",\"\"))","v":""},null,"小型機器種別",null,"街路灯",null,"有","ブレーカー契約（計器）","事務所",1100,610,480,0,0,0]
[null,"携帯",null,"-",null,null,"-",null,null,null,null,"",{"$f":"IF(OR(C10=\"\",E10=\"\",K10=\"\"),\"\",IF(OR(LEN(K10)<>4,LEN(C10)+LEN(E10)+LEN(K10)<>11),\"←入力内容が不正です。\",\"\"))","v":""},null,null,null,"信号",null,"無",null,"旅館・飲食店",1060,530,530,0,0,0]
["電気工事会社","会社名",null,null,null,null,null,null,null,null,null,"←入力してください。",{"$f":"IF(C11=\"\",\"←入力してください。\",\"\")","v":"←入力してください。"},null,"暖房エアコン",null,"その他",null,null,null,"学校・病院",1170,600,600,0,0,0]
[null,"担当者",null,null,null,null,null,null,null,null,null,"←入力してください。",{"$f":"IF(C12=\"\",\"←入力してください。\",\"\")","v":"←入力してください。"},null,"HP温水暖房",null,null,null,null,null,"劇場・娯楽場",1070,660,660,0,0,0]
[null,"工事会社№",null,"-",null,null,null,null,null,null,null,"←入力してください。",{"$f":"IF(OR(C13=\"\",E13=\"\"),\"←入力してください。\",IF(OR(LEN(C13)<>2,LEN(E13)<>3),\"←入力内容が不正です。\",\"\"))","v":"←入力してください。"},null,"その他",null,null,null,null,null,"その他",1060,540,540,0,0,0]
[null,"住所",null,null,null,null,null,null,null,null,null,"←入力してください。",{"$f":"IF(C14=\"\",\"←入力してください。\",\"\")","v":"←入力してください。"}]
[null,"電話",null,"-",null,null,"-",null,null,null,null,"←入力してください。",{"$f":"IF(AND(C15=\"\",E15=\"\",H15=\"\"),\"←入力してください。\",IF(OR(LEN(H15)<>4,LEN(C15)+LEN(E15)+LEN(H15)<10,LEN(C15)+LEN(E15)+LEN(H15)>11),\"←入力内容が不正です。\",\"\"))","v":"←入力してください。"}]
["建築会社","会社名",null,null,null,null,null,null,null,null,null,"",{"$f":"IF(AND(C17=\"\",C18=\"\",E18=\"\",H18=\"\"),\"\",IF(C16=\"\",\"←入力してください。\",\"\"))","v":""}]
[null,"担当者",null,null,null,null,null,null,null,null,null,"",{"$f":"IF(AND(C16=\"\",C18=\"\",E18=\"\",H18=\"\"),\"\",IF(C17=\"\",\"←入力してください。\",\"\"))","v":""}]
[null,"電話",null,"-",null,null,"-",null,null,null,null,"",{"$f":"IF(LEN(C18)+LEN(E18)+LEN(H18)=0,\"\",IF(OR(LEN(H18)<>4,LEN(C18)+LEN(E18)+LEN(H18)<10,LEN(C18)+LEN(E18)+LEN(H18)>11),\"←入力内容が不正です。\",\"\"))","v":""},null,"ドロップダウンデータ反映列"]
["お支払方法",null,null,null,null,null,null,null,null,null,null,"←選択してください。",{"$f":"IF(O19=1,\"←選択してください。\",\"\")","v":"←選択してください。"},null,1]
["支払者名","フリガナ",null,null,null,null,null,null,null,null,null,"",{"$f":"IF(AND(C20=\"\",C21=\"\"),\"\",IF(AND(C20=\"\",C21<>\"同上\"),\"←入力してください。\",IF(LEN(ASC(C20))>40,\"←「゛」「゜」を含め，40文字以内としてください。\",\"\")))","v":""}]
[null,"漢字",null,null,null,null,null,null,null,null,null,"←入力してください。",{"$f":"IF(C21=\"\",\"←入力してください。\",\"\")","v":"←入力してください。"}]
["請求書送付先","郵便番号",null,null,null,null,null,null,null,null,null,"",{"$f":"IF(AND(C22=\"\",C23=\"\"),\"\",IF(AND(C22=\"\",C23<>\"同上\"),\"←入力してください。\",IF(C22=\"\",\"\",IF(OR(AND(MID(C22,4,1)<>\"-\",LEN(C22)<>7),AND(MID(C22,4,1)=\"-\",LEN(C22)<>8)),\"←入力誤りです。\",\"\"))))","v":""}]
[null,"住所",null,null,null,null,null,null,null,null,null,"←入力してください。",{"$f":"IF(C23=\"\",\"←入力してください。\",\"\")","v":"←入力してください。"}]
[null,"電話",null,"-",null,null,"-",null,null,null,null,"",{"$f":"IF(AND(C23=\"\",C24=\"\",E24=\"\",H24=\"\"),\"\",IF(C23=\"同上\",\"\",IF(AND(C24=\"\",E24=\"\",H24=\"\"),\"←入力してください。\",IF(OR(LEN(H24)<>4,LEN(C24)+LEN(E24)+LEN(H24)<10,LEN(C24)+LEN(E24)+LEN(H24)>11),\"←入力内容が不正です。\",\"\"))))","v":""}]
["ご連絡先","住所",null,null,null,null,null,null,null,null,null,"←入力してください。",{"$f":"IF(C25=\"\",\"←入力してください。\",\"\")","v":"←入力してください。"}]
[null,"電話",null,"-",null,null,"-",null,null,null,null,"",{"$f":"IF(AND(C25=\"\",C26=\"\",E26=\"\",H26=\"\"),\"\",IF(OR(C25=\"同上\",C25=\"同左\"),\"\",IF(AND(C26=\"\",E26=\"\",H26=\"\"),\"←入力してください。\",IF(OR(LEN(H26)<>4,LEN(C26)+LEN(E26)+LEN(H26)<10,LEN(C26)+LEN(E26)+LEN(H26)>11),\"←入力内容が不正です。\",\"\"))))","v":""}]
["電設Ｎｅｔ申込",null,null,null,null,null,null,null,null,null,null,{"$f":"IF(M27=\"\",\"\",M27)","v":"←選択してください。"},{"$f":"IF(O27=1,\"←選択してください。\",\"\")","v":"←選択してください。"},null,1]
["電設工事番号",null,null,null,null,null,null,null,null,null,null,{"$f":"IF(M28=\"\",\"\",M28)","v":""},{"$f":"IF(OR(O27=1,O27=3),\"\",IF(LEN(ASC(C28))>10,\"←10桁の番号を入力してください。\",\"\"))","v":""}]
["受電希望日",null,null,"年",null,null,"月",null,"日",null,null,"←入力してください。",{"$f":"IF(OR(C29=\"\",E29=\"\",G29=\"\"),\"←入力してください。\",IF(AND(ISNUMBER(C29),ISNUMBER(E29),ISNUMBER(H29)),IF(OR(C29<1,E29<1,E29>12,H29<1,H29>31),\"←入力内容が不正です。\",\"\"),\"←数字を入力してください。\"))","v":"←入力してください。"},null,1]
["契約種別",null,null,null,null,null,null,null,null,null,null,"←選択してください。",{"$f":"IF(O30=1,\"←選択してください。\",IF(OR(Q46=\"\",Q47=\"\"),\"\",IF(AND(O30=2,Q46>500),\"←従量電灯Ａの範囲外の容量です。\",IF(AND(O30=3,Q46<=500,Q46>6000),\"←従量電灯Ｂの範囲外の容量です。\",IF(AND(O30=4,OR(Q47<6,Q47>=50)),\"←従量電灯Ｃの範囲外の容量です。\",IF(AND(O30=5,Q47>=50),\"←公衆街路灯Ｂの範囲外の容量です。\",\"\"))))))","v":"←選択してください。"},null,1,"業種表示用"]
["業種",null,null,null,null,null,null,null,null,null,null,"←選択してください。",{"$f":"IF(O31=1,\"←選択してください。\",IF(AND(K31=\"\",O31=8),\"←具体的な業種を入力してください。\",\"\"))","v":"←選択してください。"},null,1,{"$f":"IF(O31=2,Q5,IF(O31=3,Q6,IF(O31=4,Q7,IF(O31=5,Q8,IF(O31=6,Q9,IF(O31=7,Q10,IF(O31=8,K31,\"\")))))))","v":""}]
["供給電気方式・供給電圧",null,null,null,null,null,null,null,null,null,null,"←選択してください。",{"$f":"IF(O32=1,\"←選択してください。\",IF(O32=5,\"←間違いありませんか？\",\"\"))","v":"←選択してください。"},null,1]
["フリーエリア計器払出事業所名",null,null,null,null,null,null,null,null,null,null,"←希望がなければ「なし」と入力ください。",{"$f":"IF(C33=\"\",\"←希望がなければ「なし」と入力ください。\",\"\")","v":"←希望がなければ「なし」と入力ください。"},null,1]
["本契約前の臨時契約の有無",null,null,null,null,null,null,null,null,null,null,"←選択してください。",{"$f":"IF(O34=1,\"←選択してください。\",\"\")","v":"←選択してください。"},null,1]
["契約決定方法",null,null,null,null,null,null,null,null,null,null,"←選択してください。",{"$f":"IF(O35=1,\"←選択してください。\",IF(AND(O35<>5,O30=5),\"←負荷設備契約以外は選択できません。\",IF(AND(OR(O35=2,O35=6),O30=4),\"←ブレーカー契約は選択できません。\",IF(AND(O35=4,OR(O30=2,O30=3)),\"←回路契約は選択できません。\",\"\"))))","v":"←選択してください。"},null,1,"回路契約"]
["主開閉器・電流制限器の定格電流",null,null,"Ａ",null,null,"←主開閉器・電流制限器の１次側",null,null,null,null,"",{"$f":"IF(AND(OR(O35=2,O35=3,O35=6),C36=\"\"),\"←入力してください。\",IF(ISNUMBER(C36),IF(AND(O30=2,C36<>5),\"←「５」と入力してください。\",IF(AND(O30=3,OR(O35=2,O35=6),OR(C36<10,C36>60,AND(C36<>15,MOD(C36,10)<>0))),\"←入力内容が不正です。\",\"\")),IF(C36=\"\",\"\",\"←数字を入力してください。\")))","v":""},false,{"$f":"IF(N36=TRUE,1,0)","v":0},"業種表示用","容量計算用"]
["適用業種別\n回路数内訳１","業種",null,null,null,null,null,null,null,null,null,"",{"$f":"IF(AND(O35<>4,O37<>1),\"←選択できません。\",IF(AND(O35=4,O37=1),\"←選択してください。\",\"\"))","v":""},null,1,{"$f":"IF(O37=2,$U$5,IF(O37=3,$U$6,IF(O37=4,$U$7,IF(O37=5,$U$8,IF(O37=6,$U$9,IF(O37=7,$U$10,IF(O37=8,$U$11,IF(O37=9,$U$12,\"\"))))))))","v":""},{"$f":"IF(O37=2,Y5,IF(O37=3,Y6,IF(O37=4,Y7,IF(O37=5,Y8,IF(O37=6,Y9,IF(O37=7,Y10,IF(O37=8,Y11,IF(O37=9,Y12,0))))))))","v":0}]
[null,"回路数",null,"回路",null,null,null,null,null,null,null,"",{"$f":"IF(O35<>4,IF(C38<>\"\",\"←入力できません。\",\"\"),IF(O37=1,\"\",IF(C38=\"\",\"←入力してください。\",IF(ISNUMBER(C38),\"\",\"←数字を入力してください。\"))))","v":""},null,1,{"$f":"IF(O37=10,$U$13,P37)","v":""},{"$f":"IF(O37=10,Y13,Q37)","v":0}]
["適用業種別\n回路数内訳２","業種",null,null,null,null,null,null,null,null,null,{"$f":"IF(M39=\"\",\"\",M39)","v":""},{"$f":"IF(AND(O35<>4,O39<>1),\"←選択できません。\",IF(AND(O35=4,C40<>\"\",O39=1),\"←選択してください。\",\"\"))","v":""},null,1,{"$f":"IF(O39=2,$U$5,IF(O39=3,$U$6,IF(O39=4,$U$7,IF(O39=5,$U$8,IF(O39=6,$U$9,IF(O39=7,$U$10,IF(O39=8,$U$11,IF(O39=9,$U$12,\"\"))))))))","v":""},{"$f":"IF(O39=2,Z5,IF(O39=3,Z6,IF(O39=4,Z7,IF(O39=5,Z8,IF(O39=6,Z9,IF(O39=7,Z10,IF(O39=8,Z11,IF(O39=9,Z12,0))))))))","v":0}]
[null,"回路数",null,"回路",null,null,null,null,null,null,null,{"$f":"IF(M40=\"\",\"\",M40)","v":""},{"$f":"IF(O35<>4,IF(C40<>\"\",\"←入力できません。\",\"\"),IF(O39=1,\"\",IF(C40=\"\",\"←入力してください。\",IF(ISNUMBER(C40),\"\",\"←数字を入力してください。\"))))","v":""},null,1,{"$f":"IF(O39=10,$U$13,P39)","v":""},{"$f":"IF(O39=10,Z13,Q39)","v":0}]
["適用業種別\n回路数内訳３","業種",null,null,null,null,null,null,null,null,null,"",{"$f":"IF(AND(O35<>4,O41<>1),\"←選択できません。\",IF(AND(O35=4,C42<>\"\",O41=1),\"←選択してください。\",\"\"))","v":""},null,1,{"$f":"IF(O41=2,$U$5,IF(O41=3,$U$6,IF(O41=4,$U$7,IF(O41=5,$U$8,IF(O41=6,$U$9,IF(O41=7,$U$10,IF(O41=8,$U$11,IF(O41=9,$U$12,\"\"))))))))","v":""},{"$f":"IF(O41=2,AA5,IF(O41=3,AA6,IF(O41=4,AA7,IF(O41=5,AA8,IF(O41=6,AA9,IF(O41=7,AA10,IF(O41=8,AA11,IF(O41=9,AA12,0))))))))","v":0}]
[null,"回路数",null,"回路",null,null,null,null,null,null,null,"",{"$f":"IF(O35<>4,IF(C42<>\"\",\"←入力できません。\",\"\"),IF(O41=1,\"\",IF(C42=\"\",\"←入力してください。\",IF(ISNUMBER(C42),\"\",\"←数字を入力してください。\"))))","v":""},null,null,{"$f":"IF(O41=10,$U$13,P41)","v":""},{"$f":"IF(O41=10,AA13,Q41)","v":0}]
["契約負荷\n設備内訳","電灯",null,"灯",null,null,null,null,null,null,null,"",{"$f":"IF(OR(C43=\"\",ISNUMBER(C43)),IF(AND(O35=5,C43*C44+C45*C46=0),\"←入力してください。\",\"\"),\"←数字を入力してください。\")","v":""}]
[null,null,null,null,"ＶＡ",null,null,null,null,null,null,"",{"$f":"IF(OR(C44=\"\",ISNUMBER(C44)),IF(AND(O35=5,C43*C44+C45*C46=0),\"←入力してください。\",\"\"),\"←数字を入力してください。\")","v":""},null,null,"契約容量等算定用"]
[null,"小型機器",null,"個",null,null,null,null,null,null,null,"",{"$f":"IF(OR(C45=\"\",ISNUMBER(C45)),IF(AND(O35=5,C43*C44+C45*C46=0),\"←入力してください。\",\"\"),\"←数字を入力してください。\")","v":""},null,null,"回路契約",{"$f":"Q38+Q40+Q42+C44+C46","v":0}]
[null,null,null,null,"ＶＡ",null,null,null,null,null,null,"",{"$f":"IF(OR(C46=\"\",ISNUMBER(C46)),IF(AND(O35=5,C43*C44+C45*C46=0),\"←入力してください。\",\"\"),\"←数字を入力してください。\")","v":""},null,null,"容量圧縮",{"$f":"IF(OR(O35<4,O35=6),Q48,IF(Q45<6000,Q45*0.95,IF(Q45<20000,6000*0.95+(Q45-6000)*0.85,IF(Q45<50000,6000*0.95+14000*0.85+(Q45-20000)*0.75,6000*0.95+14000*0.85+30000*0.75+(Q45-50000)*0.65))))","v":""}]
[null,"小型機器\nのうち，ＩＨ\nクッキング\nヒーター",null,"台",null,null,null,null,null,null,null,"",{"$f":"IF(AND(D48=\"\",E49=\"\",E50=\"\"),\"\",IF(C47=\"\",\"←入力してください。\",IF(OR(C47=\"\",ISNUMBER(C47)),\"\",\"←数字を入力してください。\")))","v":""},null,null,"契約算定",{"$f":"IF(Q46=\"\",\"\",IF(O30=2,5,IF(O30=3,IF(O35=5,\"\",IF(AND(Q46>1000,Q46<=1500),15,ROUNDUP(Q46/1000,0)*10)),IF(O30=4,ROUND(Q46/1000,0),ROUND(Q48/1000,0)))))","v":""}]
[null,null,"合計",null,null,null,null,"ＶＡ",null,null,null,{"$f":"IF(M48=\"\",\"\",M48)","v":""},{"$f":"IF(AND(C47=\"\",E49=\"\",E50=\"\"),\"\",IF(D48=\"\",\"←入力してください。\",IF(OR(D48=\"\",ISNUMBER(D48)),\"\",\"←数字を入力してください。\")))","v":""},null,null,"総容量",{"$f":"IF(OR(OR(O35=2,O35=6),AND(O35=3,O32=2)),C36*100,IF(AND(O35=3,O32>2,O32<5),C36*200,IF(AND(O35=3,O32=5),C36*200*1.732,IF(O35=4,Q45,IF(O35=5,C44+C46,\"\")))))","v":""}]
[null,null,"メーカー",null,null,null,null,null,null,null,null,""]
[null,null,"型式",null,null,null,null,null,null,null,null,{"$f":"IF(M50=\"\",\"\",M50)","v":""},null,null,1]
[null,"小型機器\nのうち，暖房エアコン等",null,null,null,null,null,null,null,null,null,{"$f":"IF(M51=\"\",\"\",M51)","v":""},{"$f":"IF(AND(O51=1,C52=\"\",D53=\"\",E54=\"\",E55=\"\"),\"\",IF(O51=1,\"←選択してください。\",IF(AND(O51=4,K51=\"\"),\"←具体的な機器種別を入力して下さい。\",\"\")))","v":""},null,1]
[null,null,null,"台",null,null,null,null,null,null,null,{"$f":"IF(M52=\"\",\"\",M52)","v":""},{"$f":"IF(AND(O51=1,D53=\"\",E54=\"\",E55=\"\"),\"\",IF(C52=\"\",\"←入力してください。\",IF(OR(C52=\"\",ISNUMBER(C52)),\"\",\"←数字を入力してください。\")))","v":""}]
[null,null,"合計",null,null,null,null,"ＶＡ",null,null,null,{"$f":"IF(M53=\"\",\"\",M53)","v":""},{"$f":"IF(AND(O51=1,C52=\"\",D53=\"\",E54=\"\",E55=\"\"),\"\",IF(D53=\"\",\"←入力してください。\",IF(OR(D53=\"\",ISNUMBER(D53)),\"\",\"←数字を入力してください。\")))","v":""}]
[null,null,"メーカー"]
[null,null,"型式"]
["回路数",null,null,"回路",null,null,null,null,null,null,null,"←入力してください。",{"$f":"IF(C56=\"\",\"←入力してください。\",IF(ISNUMBER(C56),\"\",\"←数字を入力してください。\"))","v":"←入力してください。"}]

{"sheet":"１枚目","index":1,"n_rows":163,"n_cols":111,"rows_kept":163,"cut":false,"hidden":false,"merged":[[1,93,5,109],[12,1,13,38],[10,1,11,25],[65,96,69,99],[65,80,69,88],[65,89,69,95],[66,76,69,79],[68,30,69,35],[68,36,69,42],[62,67,69,75],[64,30,65,35],[64,36,65,42],[66,48,67,49],[62,48,63,49],[62,30,63,44],[62,50,63,56],[62,57,63,59],[64,43,65,46],[44,1,47,5],[24,6,29,10],[24,17,26,20],[24,16,26,16],[31,93,32,97],[30,47,32,54],[54,44,59,49],[92,3,94,109],[105,1,107,16],[164,0,165,110],[162,0,163,110],[98,3,100,109],[95,3,97,109],[60,6,61,17],[60,18,61,59],[46,28,47,30],[45,15,47,19],[41,103,48,110],[70,1,77,3],[72,4,73,27],[60,1,69,5],[66,30,67,44],[66,6,69,14],[66,15,69,17],[62,60,69,66],[48,1,53,5],[62,6,65,14],[62,15,65,17],[62,18,65,26],[62,27,65,29],[62,45,63,47],[48,63,53,66],[16,1,39,5],[16,6,23,10],[30,6,32,10],[30,11,32,13],[30,20,32,20],[58,63,59,66],[60,60,61,66],[56,63,57,66],[54,63,55,66],[54,60,55,62],[54,30,59,36],[30,56,32,63],[40,1,43,30],[33,11,39,20],[46,12,47,14],[55,37,59,41],[58,42,59,43],[48,6,53,32],[46,20,47,22],[45,6,47,11],[40,31,47,35],[33,6,39,10],[30,46,32,46],[41,101,48,102],[33,86,34,110],[38,104,39,104],[33,51,34,52],[48,79,50,79],[38,51,39,58],[35,44,36,44],[35,45,36,45],[40,80,45,86],[40,87,42,99],[43,87,45,99],[33,53,34,55],[33,57,34,60],[38,59,39,62],[33,46,39,50],[33,56,34,56],[48,74,50,78],[48,39,53,57],[40,52,47,79],[40,36,41,46],[42,36,47,46],[48,58,53,62],[40,47,47,51],[48,33,53,38],[89,3,91,109],[83,1,84,97],[79,1,80,97],[81,1,82,97],[74,36,77,38],[74,4,75,27],[76,4,77,27],[33,61,34,62],[48,67,50,73],[38,93,39,97],[35,86,37,110],[38,105,39,109],[38,110,39,110],[37,26,39,45],[35,51,37,80],[38,68,39,68],[38,69,39,73],[38,74,39,74],[38,63,39,67],[51,67,53,79],[60,67,61,79],[56,60,57,62],[58,60,59,62],[54,6,59,29],[66,18,69,26],[68,43,69,46],[6,0,9,110],[13,64,15,68],[13,85,15,89],[13,108,15,110],[24,21,26,22],[22,11,23,19],[38,75,39,79],[16,75,18,110],[19,109,20,110],[25,69,26,88],[21,75,22,110],[16,69,18,74],[13,69,15,84],[19,69,20,74],[13,90,15,107],[38,99,39,103],[38,80,39,80],[25,89,26,92],[25,93,26,97],[25,98,26,98],[25,99,26,103],[31,104,32,104],[30,39,32,45],[31,110,32,110],[30,21,32,27],[31,105,32,109],[31,99,32,103],[27,75,30,110],[31,89,32,92],[31,75,32,88],[70,4,71,27],[70,28,77,30],[70,36,73,38],[54,50,55,59],[68,47,69,59],[66,57,67,59],[58,50,59,59],[56,50,57,59],[66,50,67,56],[66,45,67,47],[64,47,65,59],[66,27,69,29],[54,1,59,5],[70,31,73,35],[70,39,73,40],[70,41,73,43],[35,26,36,26],[35,27,36,27],[35,28,36,28],[35,29,36,29],[35,30,36,30],[35,31,36,31],[22,20,23,38],[30,14,32,19],[31,98,32,98],[30,28,32,28],[33,21,39,25],[33,63,34,80],[38,98,39,98],[38,86,39,88],[38,89,39,92],[33,81,39,85],[35,35,36,35],[35,36,36,36],[35,37,36,37],[35,38,36,38],[33,43,34,43],[33,44,34,44],[33,45,34,45],[35,32,36,32],[35,33,36,33],[35,34,36,34],[19,100,20,102],[19,90,20,99],[19,103,20,103],[35,39,36,39],[35,40,36,40],[35,41,36,41],[35,42,36,42],[35,43,36,43],[27,64,32,68],[27,69,30,74],[31,69,32,74],[30,55,32,55],[23,69,24,110],[21,69,22,74],[27,11,29,63],[24,11,26,12],[24,13,26,15],[25,110,26,110],[25,104,26,104],[24,23,26,63],[30,36,32,38],[30,29,32,35],[19,104,20,108],[19,75,20,89],[16,64,26,68],[22,39,23,46],[18,11,21,63],[16,11,17,17],[22,47,23,63],[16,58,17,63],[16,18,17,18],[25,105,26,109],[16,19,17,19],[16,20,17,20],[16,21,17,21],[16,22,17,22],[16,23,17,23],[16,24,17,24],[16,25,17,25],[16,26,17,26],[16,27,17,27],[16,28,17,28],[16,29,17,29],[16,50,17,50],[16,51,17,51],[16,52,17,52],[16,53,17,53],[16,30,17,30],[16,31,17,31],[16,32,17,32],[16,33,17,33],[16,34,17,34],[16,35,17,35],[16,36,17,36],[16,47,17,47],[16,48,17,48],[16,39,17,39],[16,40,17,40],[16,41,17,41],[16,42,17,42],[16,43,17,43],[16,44,17,44],[16,45,17,45],[16,46,17,46],[16,49,17,49],[45,23,47,27],[16,55,17,55],[16,56,17,56],[16,57,17,57],[33,26,34,26],[33,27,34,27],[33,28,34,28],[33,29,34,29],[33,30,34,30],[33,31,34,31],[33,32,34,32],[33,33,34,33],[33,34,34,34],[33,35,34,35],[33,36,34,36],[33,37,34,37],[33,38,34,38],[33,39,34,39],[33,40,34,40],[33,41,34,41],[33,42,34,42],[16,54,17,54],[16,37,17,37],[16,38,17,38],[70,60,73,62],[70,63,73,65],[74,31,77,35],[74,39,77,40],[74,41,77,43],[74,44,77,48],[74,49,77,51],[74,52,77,56],[74,57,77,59],[74,60,77,62],[74,63,77,65],[70,44,73,48],[70,49,73,51],[70,52,73,56],[70,57,73,59]]}
[]
[null,null,null,null,null,null,null,null,null,null,null,null,null,null,null,null,null,null,null,null,null,null,null,null,null,null,null,null,null,null,null,null,null,null,null,null,null,null,null,null,null,null,null,null,null,null,null,null,null,null,null,null,null,null,null,null,null,null,null,null,null,null,null,null,null,null,null,null,null,null,null,null,null,null,null,null,null,null,null,null,null,null,null,null,null,null,null,null,null,null,null,null,null,"離島等供給用"]
[]
[]
[]
[]
["従量制電灯電気使用申込書（工事会社様控）"]
[]
[]
[]
[null,"北海道電力ネットワーク株式会社　御中"]
[]
[null,"電気の使用について貴社離島等供給約款[低圧用]を承認のうえ申し込みます。"]
[null,null,null,null,null,null,null,null,null,null,null,null,null,null,null,null,null,null,null,null,null,null,null,null,null,null,null,null,null,null,null,null,null,null,null,null,null,null,null,null,null,null,null,null,null,null,null,null,null,null,null,null,null,null,null,null,null,null,null,null,null,null,null,null,"受付扱所名",null,null,null,null,null,null,null,null,null,null,null,null,null,null,null,null,null,null,null,null,"受付№"]
[]
[]
[null,"お 客 さ ま",null,null,null,null,"ご契約名義",null,null,null,null,"（フリガナ）",null,null,null,null,null,null,{"$f":"DBCS(MID(ASC(入力用!C3),1,1))","v":""},{"$f":"DBCS(MID(ASC(入力用!C3),2,1))","v":""},{"$f":"DBCS(MID(ASC(入力用!C3),3,1))","v":""},{"$f":"DBCS(MID(ASC(入力用!C3),4,1))","v":""},{"$f":"DBCS(MID(ASC(入力用!C3),5,1))","v":""},{"$f":"DBCS(MID(ASC(入力用!C3),6,1))","v":""},{"$f":"DBCS(MID(ASC(入力用!C3),7,1))","v":""},{"$f":"DBCS(MID(ASC(入力用!C3),8,1))","v":""},{"$f":"DBCS(MID(ASC(入力用!C3),9,1))","v":""},{"$f":"DBCS(MID(ASC(入力用!C3),10,1))","v":""},{"$f":"DBCS(MID(ASC(入力用!C3),11,1))","v":""},{"$f":"DBCS(MID(ASC(入力用!C3),12,1))","v":""},{"$f":"DBCS(MID(ASC(入力用!C3),13,1))","v":""},{"$f":"DBCS(MID(ASC(入力用!C3),14,1))","v":""},{"$f":"DBCS(MID(ASC(入力用!C3),15,1))","v":""},{"$f":"DBCS(MID(ASC(入力用!C3),16,1))","v":""},{"$f":"DBCS(MID(ASC(入力用!C3),17,1))","v":""},{"$f":"DBCS(MID(ASC(入力用!C3),18,1))","v":""},{"$f":"DBCS(MID(ASC(入力用!C3),19,1))","v":""},{"$f":"DBCS(MID(ASC(入力用!C3),20,1))","v":""},{"$f":"DBCS(MID(ASC(入力用!C3),21,1))","v":""},{"$f":"DBCS(MID(ASC(入力用!C3),22,1))","v":""},{"$f":"DBCS(MID(ASC(入力用!C3),23,1))","v":""},{"$f":"DBCS(MID(ASC(入力用!C3),24,1))","v":""},{"$f":"DBCS(MID(ASC(入力用!C3),25,1))","v":""},{"$f":"DBCS(MID(ASC(入力用!C3),26,1))","v":""},{"$f":"DBCS(MID(ASC(入力用!C3),27,1))","v":""},{"$f":"DBCS(MID(ASC(入力用!C3),28,1))","v":""},{"$f":"DBCS(MID(ASC(入力用!C3),29,1))","v":""},{"$f":"DBCS(MID(ASC(入力用!C3),30,1))","v":""},{"$f":"DBCS(MID(ASC(入力用!C3),31,1))","v":""},{"$f":"DBCS(MID(ASC(入力用!C3),32,1))","v":""},{"$f":"DBCS(MID(ASC(入力用!C3),33,1))","v":""},{"$f":"DBCS(MID(ASC(入力用!C3),34,1))","v":""},{"$f":"DBCS(MID(ASC(入力用!C3),35,1))","v":""},{"$f":"DBCS(MID(ASC(入力用!C3),36,1))","v":""},{"$f":"DBCS(MID(ASC(入力用!C3),37,1))","v":""},{"$f":"DBCS(MID(ASC(入力用!C3),38,1))","v":""},{"$f":"DBCS(MID(ASC(入力用!C3),39,1))","v":""},{"$f":"DBCS(MID(ASC(入力用!C3),40,1))","v":""},null,null,null,null,null,null,"電気工事会社",null,null,null,null," 会社名",null,null,null,null,null,{"$f":"IF(入力用!C11=\"\",\"\",入力用!C11)","v":""}]
[]
[null,null,null,null,null,null,null,null,null,null,null,{"$f":"IF(入力用!C4=\"\",\"\",入力用!C4)","v":""}]
[null,null,null,null,null,null,null,null,null,null,null,null,null,null,null,null,null,null,null,null,null,null,null,null,null,null,null,null,null,null,null,null,null,null,null,null,null,null,null,null,null,null,null,null,null,null,null,null,null,null,null,null,null,null,null,null,null,null,null,null,null,null,null,null,null,null,null,null,null,"(担当者)",null,null,null,null,null,{"$f":"IF(入力用!C12=\"\",\"\",入力用!C12)","v":""},null,null,null,null,null,null,null,null,null,null,null,null,null,null,"工事会社№（",null,null,null,null,null,null,null,null,null,{"$f":"IF(入力用!C13=\"\",\"\",入力用!C13)","v":""},null,null,"-",{"$f":"IF(入力用!E13=\"\",\"\",入力用!E13)","v":""},null,null,null,null,")"]
[]
[null,null,null,null,null,null,null,null,null,null,null,null,null,null,null,null,null,null,null,null,null,null,null,null,null,null,null,null,null,null,null,null,null,null,null,null,null,null,null,null,null,null,null,null,null,null,null,null,null,null,null,null,null,null,null,null,null,null,null,null,null,null,null,null,null,null,null,null,null," 住　所",null,null,null,null,null,{"$f":"LEFT(入力用!C14,24)","v":""}]
[null,null,null,null,null,null,null,null,null,null,null,"（代表者肩書）",null,null,null,null,null,null,null,null,{"$f":"IF(入力用!C5=\"\",\"\",入力用!C5)","v":""},null,null,null,null,null,null,null,null,null,null,null,null,null,null,null,null,null,null,"（代表者名）",null,null,null,null,null,null,null,{"$f":"IF(入力用!C6=\"\",\"\",入力用!C6)","v":""}]
[null,null,null,null,null,null,null,null,null,null,null,null,null,null,null,null,null,null,null,null,null,null,null,null,null,null,null,null,null,null,null,null,null,null,null,null,null,null,null,null,null,null,null,null,null,null,null,null,null,null,null,null,null,null,null,null,null,null,null,null,null,null,null,null,null,null,null,null,null,{"$f":"MID(入力用!C14,25,28)","v":""}]
[null,null,null,null,null,null,"ご使用\n場　所",null,null,null,null,"(〒",null,{"$f":"LEFT(入力用!C7,3)","v":""},null,null,"-",{"$f":"RIGHT(入力用!C7,4)","v":""},null,null,null,")",null,{"$f":"LEFT(入力用!C8,25)","v":""}]
[null,null,null,null,null,null,null,null,null,null,null,null,null,null,null,null,null,null,null,null,null,null,null,null,null,null,null,null,null,null,null,null,null,null,null,null,null,null,null,null,null,null,null,null,null,null,null,null,null,null,null,null,null,null,null,null,null,null,null,null,null,null,null,null,null,null,null,null,null,{"$f":"MID(入力用!C14,53,12)","v":""},null,null,null,null,null,null,null,null,null,null,null,null,null,null,null,null,null,null,null,"電話(",null,null,null,{"$f":"IF(入力用!C15=\"\",\"\",入力用!C15)","v":""},null,null,null,null,"-",{"$f":"IF(入力用!E15=\"\",\"\",入力用!E15)","v":""},null,null,null,null,"-",{"$f":"IF(入力用!H15=\"\",\"\",入力用!H15)","v":""},null,null,null,null,")"]
[]
[null,null,null,null,null,null,null,null,null,null,null,{"$f":"MID(入力用!C8,26,33)","v":""},null,null,null,null,null,null,null,null,null,null,null,null,null,null,null,null,null,null,null,null,null,null,null,null,null,null,null,null,null,null,null,null,null,null,null,null,null,null,null,null,null,null,null,null,null,null,null,null,null,null,null,null,"建築会社",null,null,null,null," 会社名",null,null,null,null,null,{"$f":"IF(入力用!C16=\"\",\"\",入力用!C16)","v":""}]
[]
[]
[null,null,null,null,null,null,"電話番号",null,null,null,null,"固定",null,null,{"$f":"IF(入力用!C9=\"\",\"\",入力用!C9)","v":""},null,null,null,null,null,"-",{"$f":"IF(入力用!E9=\"\",\"\",入力用!E9)","v":""},null,null,null,null,null,null,"-",{"$f":"IF(入力用!H9=\"\",\"\",入力用!H9)","v":""},null,null,null,null,null,null,"携帯",null,null,{"$f":"IF(入力用!C10=\"\",\"\",入力用!C10)","v":""},null,null,null,null,null,null,"-",{"$f":"IF(入力用!E10=\"\",\"\",入力用!E10)","v":""},null,null,null,null,null,null,null,"-",{"$f":"IF(入力用!H10=\"\",\"\",入力用!H10)","v":""}]
[null,null,null,null,null,null,null,null,null,null,null,null,null,null,null,null,null,null,null,null,null,null,null,null,null,null,null,null,null,null,null,null,null,null,null,null,null,null,null,null,null,null,null,null,null,null,null,null,null,null,null,null,null,null,null,null,null,null,null,null,null,null,null,null,null,null,null,null,null,"(担当者)",null,null,null,null,null,{"$f":"IF(入力用!C17=\"\",\"\",入力用!C17)","v":""},null,null,null,null,null,null,null,null,null,null,null,null,null,"電話(",null,null,null,{"$f":"IF(入力用!C18=\"\",\"\",入力用!C18)","v":""},null,null,null,null,"-",{"$f":"IF(入力用!E18=\"\",\"\",入力用!E18)","v":""},null,null,null,null,"-",{"$f":"IF(入力用!H18=\"\",\"\",入力用!H18)","v":""},null,null,null,null,")"]
[]
[null,null,null,null,null,null,"お支払\n方　法",null,null,null,null,{"$f":"IF(入力用!O19=2,入力用!O5,IF(入力用!O19=3,入力用!O6,IF(入力用!O19=4,入力用!O7,\"\")))","v":""},null,null,null,null,null,null,null,null,null,"支　払\n者　名",null,null,null,null,{"$f":"DBCS(MID(ASC(入力用!C20),1,1))","v":""},{"$f":"DBCS(MID(ASC(入力用!C20),2,1))","v":""},{"$f":"DBCS(MID(ASC(入力用!C20),3,1))","v":""},{"$f":"DBCS(MID(ASC(入力用!C20),4,1))","v":""},{"$f":"DBCS(MID(ASC(入力用!C20),5,1))","v":""},{"$f":"DBCS(MID(ASC(入力用!C20),6,1))","v":""},{"$f":"DBCS(MID(ASC(入力用!C20),7,1))","v":""},{"$f":"DBCS(MID(ASC(入力用!C20),8,1))","v":""},{"$f":"DBCS(MID(ASC(入力用!C20),9,1))","v":""},{"$f":"DBCS(MID(ASC(入力用!C20),10,1))","v":""},{"$f":"DBCS(MID(ASC(入力用!C20),11,1))","v":""},{"$f":"DBCS(MID(ASC(入力用!C20),12,1))","v":""},{"$f":"DBCS(MID(ASC(入力用!C20),13,1))","v":""},{"$f":"DBCS(MID(ASC(入力用!C20),14,1))","v":""},{"$f":"DBCS(MID(ASC(入力用!C20),15,1))","v":""},{"$f":"DBCS(MID(ASC(入力用!C20),16,1))","v":""},{"$f":"DBCS(MID(ASC(入力用!C20),17,1))","v":""},{"$f":"DBCS(MID(ASC(入力用!C20),18,1))","v":""},{"$f":"DBCS(MID(ASC(入力用!C20),19,1))","v":""},{"$f":"DBCS(MID(ASC(入力用!C20),20,1))","v":""},"請求書\n送付先",null,null,null,null,"(〒",null,{"$f":"LEFT(入力用!C22,3)","v":""},null,null,"-",{"$f":"RIGHT(入力用!C22,4)","v":""},null,null,null,")",null,{"$f":"IF(入力用!C23=\"同上\",\"\",LEFT(入力用!C23,12))","v":""},null,null,null,null,null,null,null,null,null,null,null,null,null,null,null,null,null,"ご連絡先",null,null,null,null,{"$f":"IF(OR(入力用!C25=\"同上\",入力用!C25=\"同左\"),\"\",LEFT(入力用!C25,17))","v":""}]
[]
[null,null,null,null,null,null,null,null,null,null,null,null,null,null,null,null,null,null,null,null,null,null,null,null,null,null,{"$f":"DBCS(MID(ASC(入力用!C20),21,1))","v":""},{"$f":"DBCS(MID(ASC(入力用!C20),22,1))","v":""},{"$f":"DBCS(MID(ASC(入力用!C20),23,1))","v":""},{"$f":"DBCS(MID(ASC(入力用!C20),24,1))","v":""},{"$f":"DBCS(MID(ASC(入力用!C20),25,1))","v":""},{"$f":"DBCS(MID(ASC(入力用!C20),26,1))","v":""},{"$f":"DBCS(MID(ASC(入力用!C20),27,1))","v":""},{"$f":"DBCS(MID(ASC(入力用!C20),28,1))","v":""},{"$f":"DBCS(MID(ASC(入力用!C20),29,1))","v":""},{"$f":"DBCS(MID(ASC(入力用!C20),30,1))","v":""},{"$f":"DBCS(MID(ASC(入力用!C20),31,1))","v":""},{"$f":"DBCS(MID(ASC(入力用!C20),32,1))","v":""},{"$f":"DBCS(MID(ASC(入力用!C20),33,1))","v":""},{"$f":"DBCS(MID(ASC(入力用!C20),34,1))","v":""},{"$f":"DBCS(MID(ASC(入力用!C20),35,1))","v":""},{"$f":"DBCS(MID(ASC(入力用!C20),36,1))","v":""},{"$f":"DBCS(MID(ASC(入力用!C20),37,1))","v":""},{"$f":"DBCS(MID(ASC(入力用!C20),38,1))","v":""},{"$f":"DBCS(MID(ASC(入力用!C20),39,1))","v":""},{"$f":"DBCS(MID(ASC(入力用!C20),40,1))","v":""},null,null,null,null,null,{"$f":"IF(入力用!C23=\"同上\",入力用!C23,MID(入力用!C23,13,20))","v":""},null,null,null,null,null,null,null,null,null,null,null,null,null,null,null,null,null,null,null,null,null,null,null,null,null,null,null,null,null,null,null,null,null,null,{"$f":"IF(OR(入力用!C25=\"同上\",入力用!C25=\"同左\"),入力用!C25,MID(入力用!C25,18,17))","v":""}]
[]
[null,null,null,null,null,null,null,null,null,null,null,null,null,null,null,null,null,null,null,null,null,null,null,null,null,null,{"$f":"IF(入力用!C21=\"\",\"\",入力用!C21)","v":""}]
[null,null,null,null,null,null,null,null,null,null,null,null,null,null,null,null,null,null,null,null,null,null,null,null,null,null,null,null,null,null,null,null,null,null,null,null,null,null,null,null,null,null,null,null,null,null,null,null,null,null,null,{"$f":"MID(入力用!C23,33,5)","v":""},null,null,null,null,null,null,null,"電話(",null,null,null,{"$f":"IF(入力用!C24=\"\",\"\",入力用!C24)","v":""},null,null,null,null,"-",{"$f":"IF(入力用!E24=\"\",\"\",入力用!E24)","v":""},null,null,null,null,"-",{"$f":"IF(入力用!H24=\"\",\"\",入力用!H24)","v":""},null,null,null,null,")",null,null,null,null,null,{"$f":"IF(OR(入力用!C25=\"同上\",入力用!C25=\"同左\"),\"\",MID(入力用!C25,35,1))","v":""},null,null,"電話(",null,null,null,{"$f":"IF(入力用!C26=\"\",\"\",入力用!C26)","v":""},null,null,null,null,"-",{"$f":"IF(入力用!E26=\"\",\"\",入力用!E26)","v":""},null,null,null,null,"-",{"$f":"IF(入力用!H26=\"\",\"\",入力用!H26)","v":""},null,null,null,null,")"]
[]
[null,null,null,null,null,null,null,null,null,null,null,null,null,null,null,null,null,null,null,null,null,null,null,null,null,null,null,null,null,null,null,"契約種別",null,null,null,null,null,null,null,null,null,null,null,null,null,null,null,"業種",null,null,null,null,{"$f":"IF(入力用!P31=\"\",\"\",入力用!P31)","v":""},null,null,null,null,null,null,null,null,null,null,null,null,null,null,null,null,null,null,null,null,null,null,null,null,null,null,null,"電設Ｎｅｔ　\n申込",null,null,null,null,null,null,{"$f":"IF(入力用!O27=2,入力用!S9,IF(入力用!O27=3,入力用!S10,\"\"))","v":""}]
[null,null,null,null,null,null,null,null,null,null,null,null,null,null,null,null,null,null,null,null,null,null,null,null,null,null,null,null,null,null,null,null,null,null,null,null,null,null,null,null,null,null,null,null,null,null,null,null,null,null,null,null,null,null,null,null,null,null,null,null,null,null,null,null,null,null,null,null,null,null,null,null,null,null,null,null,null,null,null,null,null,null,null,null,null,null,null,null,null,null,null,null,null,null,null,null,null,null,null,null,null,"受付"]
[null,null,null,null,null,null,null,null,null,null,null,null,null,null,null,null,null,null,null,null,null,null,null,null,null,null,null,null,null,null,null,null,null,null,null,null,{"$f":"IF(入力用!O30=2,入力用!P5,IF(入力用!O30=3,入力用!P6,IF(入力用!O30=4,入力用!P7,IF(入力用!O30=5,入力用!P8,\"\"))))","v":""}]
[null,null,null,null,null,null,null,null,null,null,null,null,null,null,null,null,null,null,null,null,null,null,null,null,null,null,null,null,null,null,null,null,null,null,null,null,null,null,null,null,null,null,null,null,null,null,null,null,null,null,null,null,null,null,null,null,null,null,null,null,null,null,null,null,null,null,null,null,null,null,null,null,null,null,null,null,null,null,null,null,null,null,null,null,null,null,null,{"$f":"IF(入力用!C28=\"\",\"\",入力用!C28)","v":""}]
[null,"受　 電\n希望日"]
[null,null,null,null,null,null,{"$f":"IF(入力用!C29=\"\",\"\",入力用!C29)","v":""},null,null,null,null,null,null,null,null,{"$f":"IF(入力用!E29=\"\",\"\",入力用!E29)","v":""},null,null,null,null,null,null,null,{"$f":"IF(入力用!H29=\"\",\"\",入力用!H29)","v":""}]
[null,null,null,null,null,null,null,null,null,null,null,null,"年",null,null,null,null,null,null,null,"月",null,null,null,null,null,null,null,"日"]
[]
[null,"供給電気\n方 式 ・\n供給電圧",null,null,null,null,{"$f":"IF(入力用!O32=2,入力用!R5,IF(入力用!O32=3,入力用!R6,IF(入力用!O32=4,入力用!R7,IF(入力用!O32=5,入力用!R8,\"\"))))","v":""},null,null,null,null,null,null,null,null,null,null,null,null,null,null,null,null,null,null,null,null,null,null,null,null,null,null,"ﾌﾘｰｴﾘｱ\n計器払\n出希望\n事業所名",null,null,null,null,null,{"$f":"IF(入力用!C33=\"\",\"\",入力用!C33)","v":""},null,null,null,null,null,null,null,null,null,null,null,null,null,null,null,null,null,null,"本契約前\nの臨時契\n約の有無",null,null,null,null,{"$f":"IF(入力用!O34=2,入力用!S5,IF(入力用!O34=3,入力用!S6,\"\"))","v":""},null,null,null,"臨時受付№(",null,null,null,null,null,null,null,null,null,null,null,")"]
[]
[]
[]
[]
[]
[null,"契約\n決定\n方法",null,null,null,null,{"$f":"IF(入力用!O35=2,入力用!T5,IF(入力用!O35=3,入力用!T6,IF(入力用!O35=4,入力用!T7,IF(入力用!O35=5,入力用!T8,IF(入力用!O35=6,入力用!T9,\"\")))))","v":""},null,null,null,null,null,null,null,null,null,null,null,null,null,null,null,null,null,null,null,null,null,null,null,"主開閉器・\n電流制限器\nの定格電流",null,null,null,null,null,null,null,null,null,null,null,null,null,"適用業種・\n容　量　別\n回路数内訳",null,null,null,null,null,{"$f":"IF(入力用!P38=\"\",\"\",入力用!P38)","v":""},null,null,null,null,null,null,null,null,null,{"$f":"IF(入力用!C38=\"\",\"\",入力用!C38)","v":""},null,null,"回路"]
[null,null,null,null,null,null,null,null,null,null,null,null,null,null,null,null,null,null,null,null,null,null,null,null,null,null,null,null,null,null,null,null,null,null,null,null,null,{"$f":"IF(入力用!C36=\"\",\"\",入力用!C36)","v":""}]
[null,null,null,null,null,null,null,null,null,null,null,null,null,null,null,null,null,null,null,null,null,null,null,null,null,null,null,null,null,null,null,null,null,null,null,null,null,null,null,null,null,null,null,null,null,null,null,null,null,null,{"$f":"IF(入力用!P40=\"\",\"\",入力用!P40)","v":""},null,null,null,null,null,null,null,null,null,{"$f":"IF(入力用!C40=\"\",\"\",入力用!C40)","v":""},null,null,"回路"]
[]
[null,null,null,null,null,null,null,null,null,null,null,null,null,null,null,null,null,null,null,null,null,null,null,null,null,null,null,null,null,null,null,null,null,null,null,null,null,null,null,null,null,null,"Ａ",null,null,null,null,null,null,null,{"$f":"IF(入力用!P42=\"\",\"\",入力用!P42)","v":""},null,null,null,null,null,null,null,null,null,{"$f":"IF(入力用!C42=\"\",\"\",入力用!C42)","v":""},null,null,"回路"]
[]
[null,"契約\n負荷\n設備\n内訳",null,null,null,null,"電      　灯",null,null,null,null,null,null,null,null,null,null,null,"小　　　型　　　機　　　器　※HPはヒートポンプ",null,null,null,null,null,null,null,null,null,null,null,null,null,null,null,null,null,null,null,null,null,null,null,null,null,null,null,null,null,null,null,null,null,null,null,null,null,null,null,null,null,"回路数",null,null,null,null,null,null,"合　計　容　量"]
[]
[null,null,null,null,null,null,{"$f":"IF(入力用!C43=\"\",\"\",入力用!C43)","v":""},null,null,null,null,null,null,null,null,"灯",null,null,{"$f":"IF(入力用!C45=\"\",\"\",入力用!C45)","v":""},null,null,null,null,null,null,null,null,"個",null,null,"うちＩＨクッキングヒーター",null,null,null,null,null,null,null,null,null,null,null,null,null,null,{"$f":"IF(入力用!C47=\"\",\"\",入力用!C47)","v":""},null,null,"台",null,{"$f":"IF(入力用!D48=\"\",\"\",入力用!D48)","v":""},null,null,null,null,null,null,"ＶＡ",null,null,{"$f":"IF(入力用!C56=\"\",\"\",入力用!C56)","v":""},null,null,null,null,null,null,{"$f":"IF(OR(入力用!O35<4,入力用!O35=6,入力用!O36=1,入力用!Q48=0),\"\",入力用!Q48)","v":""}]
[]
[null,null,null,null,null,null,null,null,null,null,null,null,null,null,null,null,null,null,null,null,null,null,null,null,null,null,null,null,null,null,"(メーカー)",null,null,null,null,null,{"$f":"IF(入力用!E49=\"\",\"\",入力用!E49)","v":""},null,null,null,null,null,null,"(型式)",null,null,null,{"$f":"IF(入力用!E50=\"\",\"\",入力用!E50)","v":""}]
[null,null,null,null,null,null,null,null,null,null,null,null,null,null,null,null,null,null,null,null,null,null,null,null,null,null,null,null,null,null,null,null,null,null,null,null,null,null,null,null,null,null,null,null,null,null,null,null,null,null,null,null,null,null,null,null,null,null,null,null,null,null,null,null,null,null,null,null,null,null,null,null,null,null,null,null,null,null,null,null,{"$f":"IF(入力用!O30<4,\"契約電流\",\"契約容量\")","v":"契約電流"},null,null,null,null,null,null,null,null,{"$f":"IF(入力用!O36=1,\"\",IF(入力用!Q47=\"\",\"\",入力用!Q47))","v":""},null,null,null,null,null,null,{"$f":"IF(入力用!O30<4,\"A\",\"kVA\")","v":"A"}]
[null,null,null,null,null,null,{"$f":"IF(入力用!C44=\"\",\"\",入力用!C44)","v":""},null,null,null,null,null,null,null,null,"ＶＡ",null,null,{"$f":"IF(入力用!C46=\"\",\"\",入力用!C46)","v":""},null,null,null,null,null,null,null,null,"ＶＡ",null,null,{"$f":"IF(入力用!O51=2,入力用!O11,IF(入力用!O51=3,入力用!O12,IF(入力用!O51=4,入力用!K51,\"\")))","v":""},null,null,null,null,null,null,null,null,null,null,null,null,null,null,{"$f":"IF(入力用!C52=\"\",\"\",入力用!C52)","v":""},null,null,"台",null,{"$f":"IF(入力用!D53=\"\",\"\",入力用!D53)","v":""},null,null,null,null,null,null,"ＶＡ",null,null,null,null,null,null,null,null,null,null,null,null,null,null,null,null,null,null,"ＶＡ"]
[]
[null,null,null,null,null,null,null,null,null,null,null,null,null,null,null,null,null,null,null,null,null,null,null,null,null,null,null,null,null,null,"(メーカー)",null,null,null,null,null,{"$f":"IF(入力用!E54=\"\",\"\",入力用!E54)","v":""},null,null,null,null,null,null,"(型式)",null,null,null,{"$f":"IF(入力用!E55=\"\",\"\",入力用!E55)","v":""}]
[]
[null,"異動種別",null,null,"・新設　　 　・減少　 　　　・転出",null,null,null,null,null,null,null,null,null,null,null,null,null,null,null,null,null,null,null,null,null,null,null,"供給地点特定番号",null,null,null,null,null,null,null,"発行\n回数",null,null,"支店",null,"ﾌﾞﾛｯｸ",null,null,"住所",null,null,null,null,"街区",null,null,"契約№",null,null,null,null,"枝番",null,null,"種別"]
[]
[null,null,null,null,"・種変(+)　　・設備撤去　　・名義変更"]
[]
[null,null,null,null,"・ｺｰﾄﾞ変(+)　・設備変更　　 ・その他",null,null,null,null,null,null,null,null,null,null,null,null,null,null,null,null,null,null,null,null,null,null,null,null,null,null,"010",null,null,null,null,null,null,null,null,null,null,null,null,null,null,null,null,null,null,null,null,null,null,null,null,null,null,null,null,{"$f":"'３枚目'!AK41","v":""},null,null,"00"]
[]
[null,null,null,null,"・増加　　 　・転入　　　　（　　　　）"]
[]
[]
[null,"　※　太枠内をご記入願います。"]
[]
[null,"　※　ご契約者さまが法人の場合は，代表者肩書および代表者名をあわせてご記入願います。"]
[]
[null,"　※　ご提供いただいた個人情報は，電気事業の範囲内で利用いたします。"]
[]
[]
[]
[]
[]
[null,null,null,"拝啓　平素は弊社事業に格別のお引き立てを賜り，厚くお礼申し上げます。５６７８９０"]
[]
[]
[null,null,null,"　さて，御社よりお申込みをいただきました上記お客さまの電気のご使用につきまして，"]
[]
[]
[null,null,null,"本内容にて受付させていただきましたことをお知らせいたします。１２３４５６７８９０"]
[]
[]
[null,null,null,"１２３４５６７８９０１２３４５６７８９０１２３４５６７８９０１２３４５６７敬具０"]
[]
[]
[]
[]
[]
[]
[null,"＜連絡事項＞"]
[]
[]
[]
[]
[]
[]
[]
[]
[]
[]
[]
[]
[]
[]
[]
[]
[]
[]
[]
[]
[]
[]
[]
[]
[]
[]
[]
[]
[]
[]
[]
[]
[]
[]
[]
[]
[]
[]
[]
[]
[]
[]
[]
[]
[]
[]
[]
[]
[]
[]
[]
[]
[]
[]
[]
[]
["北　海　道　電　力　ネ　ッ　ト　ワ　ー　ク　株　式　会　社"]

{"sheet":"２枚目","index":2,"n_rows":163,"n_cols":111,"rows_kept":163,"cut":false,"hidden":false,"merged":[[1,93,5,109],[56,63,57,66],[56,50,57,59],[56,60,57,62],[66,45,67,47],[68,47,69,59],[64,47,65,59],[62,50,63,56],[40,52,47,79],[42,36,47,46],[48,33,53,38],[48,63,53,66],[54,60,55,62],[64,36,65,42],[10,1,11,25],[12,1,13,38],[62,48,63,49],[62,18,65,26],[62,27,65,29],[64,43,65,46],[62,6,65,14],[54,50,55,59],[66,48,67,49],[33,6,39,10],[24,13,26,15],[24,6,29,10],[33,21,39,25],[24,21,26,22],[30,6,32,10],[30,11,32,13],[33,51,34,52],[35,26,36,26],[35,27,36,27],[35,28,36,28],[35,29,36,29],[35,30,36,30],[35,31,36,31],[35,32,36,32],[76,4,77,27],[164,0,165,110],[70,4,71,27],[72,4,73,27],[74,4,75,27],[68,30,69,35],[68,36,69,42],[68,43,69,46],[66,18,69,26],[66,6,69,14],[66,15,69,17],[65,80,69,88],[62,67,69,75],[66,30,67,44],[62,57,63,59],[70,36,73,38],[60,1,69,5],[60,6,61,17],[79,1,80,97],[70,28,77,30],[74,36,77,38],[65,89,69,95],[62,60,69,66],[64,30,65,35],[38,74,39,74],[38,75,39,79],[30,21,32,27],[27,75,30,110],[31,99,32,103],[33,56,34,56],[33,57,34,60],[33,27,34,27],[33,28,34,28],[33,29,34,29],[33,30,34,30],[33,31,34,31],[33,32,34,32],[33,41,34,41],[33,42,34,42],[33,43,34,43],[33,44,34,44],[33,45,34,45],[30,55,32,55],[33,63,34,80],[30,47,32,54],[33,53,34,55],[33,86,34,110],[30,28,32,28],[13,85,15,89],[31,104,32,104],[19,109,20,110],[19,90,20,99],[25,110,26,110],[21,75,22,110],[31,93,32,97],[31,98,32,98],[27,64,32,68],[25,105,26,109],[16,64,26,68],[31,69,32,74],[31,89,32,92],[58,42,59,43],[16,54,17,54],[16,55,17,55],[16,56,17,56],[16,39,17,39],[16,40,17,40],[16,41,17,41],[16,42,17,42],[16,43,17,43],[16,44,17,44],[16,45,17,45],[16,46,17,46],[16,47,17,47],[27,11,29,63],[24,11,26,12],[24,16,26,16],[30,56,32,63],[46,28,47,30],[35,33,36,33],[35,34,36,34],[35,44,36,44],[35,45,36,45],[38,59,39,62],[38,63,39,67],[16,69,18,74],[16,53,17,53],[16,48,17,48],[16,49,17,49],[16,50,17,50],[33,61,34,62],[16,51,17,51],[16,52,17,52],[16,6,23,10],[16,58,17,63],[16,57,17,57],[16,38,17,38],[16,21,17,21],[30,14,32,19],[30,20,32,20],[30,29,32,35],[54,63,55,66],[70,71,75,74],[66,27,69,29],[40,1,47,5],[40,31,47,35],[16,75,18,110],[31,75,32,88],[31,110,32,110],[31,105,32,109],[19,104,20,108],[25,99,26,103],[25,104,26,104],[25,69,26,88],[25,89,26,92],[37,26,39,45],[38,68,39,68],[38,51,39,58],[35,51,37,80],[33,46,39,50],[38,80,39,80],[22,39,23,46],[16,18,17,18],[16,19,17,19],[16,20,17,20],[41,101,48,102],[18,11,21,63],[70,1,77,3],[58,50,59,59],[48,74,50,78],[48,79,50,79],[81,1,82,97],[48,67,50,73],[51,67,53,79],[58,63,59,66],[54,30,59,36],[62,30,63,44],[54,1,59,5],[76,71,77,74],[65,96,69,99],[58,60,59,62],[66,50,67,56],[54,44,59,49],[60,18,61,59],[66,76,69,79],[66,57,67,59],[60,67,61,79],[60,60,61,66],[55,37,59,41],[38,110,39,110],[38,104,39,104],[83,1,84,97],[48,1,53,5],[6,0,9,110],[13,64,15,68],[16,1,39,5],[13,69,15,84],[16,11,17,17],[30,36,32,38],[30,46,32,46],[48,6,53,32],[54,6,59,29],[35,86,37,110],[13,90,15,110],[25,93,26,97],[38,105,39,109],[45,6,47,11],[45,15,47,19],[45,23,47,27],[46,12,47,14],[46,20,47,22],[48,39,53,57],[41,103,48,110],[16,30,17,30],[16,31,17,31],[16,32,17,32],[16,33,17,33],[162,0,163,110],[101,3,103,109],[105,1,107,16],[86,3,88,109],[98,3,100,109],[19,69,20,74],[23,69,24,110],[19,103,20,103],[21,69,22,74],[19,100,20,102],[19,75,20,89],[22,47,23,63],[25,98,26,98],[27,69,30,74],[48,58,53,62],[95,3,97,109],[89,3,91,109],[92,3,94,109],[62,45,63,47],[62,15,65,17],[16,34,17,34],[16,35,17,35],[16,36,17,36],[16,37,17,37],[16,26,17,26],[16,27,17,27],[16,28,17,28],[16,29,17,29],[33,33,34,33],[33,34,34,34],[33,35,34,35],[33,36,34,36],[33,37,34,37],[22,20,23,38],[24,23,26,63],[33,11,39,20],[30,39,32,45],[22,11,23,19],[24,17,26,20],[16,22,17,22],[16,23,17,23],[16,24,17,24],[16,25,17,25],[33,26,34,26],[40,80,45,86],[40,87,42,99],[43,87,45,99],[35,35,36,35],[35,36,36,36],[35,37,36,37],[35,38,36,38],[35,39,36,39],[35,40,36,40],[35,41,36,41],[35,42,36,42],[35,43,36,43],[38,69,39,73],[40,36,41,46],[40,47,47,51],[38,93,39,97],[38,98,39,98],[38,99,39,103],[33,81,39,85],[33,38,34,38],[33,39,34,39],[33,40,34,40],[38,89,39,92],[38,86,39,88],[70,75,75,78],[70,79,75,82],[74,31,77,35],[74,39,77,40],[74,41,77,43],[74,44,77,48],[74,49,77,51],[74,52,77,56],[74,57,77,59],[74,60,77,62],[74,63,77,65],[76,75,77,78],[76,79,77,82],[70,31,73,35],[70,39,73,40],[70,41,73,43],[70,44,73,48],[70,49,73,51],[70,52,73,56],[70,57,73,59],[70,60,73,62],[70,63,73,65],[70,66,77,70]]}
[]
[null,null,null,null,null,null,null,null,null,null,null,null,null,null,null,null,null,null,null,null,null,null,null,null,null,null,null,null,null,null,null,null,null,null,null,null,null,null,null,null,null,null,null,null,null,null,null,null,null,null,null,null,null,null,null,null,null,null,null,null,null,null,null,null,null,null,null,null,null,null,null,null,null,null,null,null,null,null,null,null,null,null,null,null,null,null,null,null,null,null,null,null,null,"離島等供給用"]
[]
[]
[]
[]
["従量制電灯電気使用申込書（お客さま控）"]
[]
[]
[]
[null,"北海道電力ネットワーク株式会社　御中"]
[]
[null,"電気の使用について貴社離島等供給約款[低圧用]を承認のうえ申し込みます。"]
[null,null,null,null,null,null,null,null,null,null,null,null,null,null,null,null,null,null,null,null,null,null,null,null,null,null,null,null,null,null,null,null,null,null,null,null,null,null,null,null,null,null,null,null,null,null,null,null,null,null,null,null,null,null,null,null,null,null,null,null,null,null,null,null,"受付扱所名",null,null,null,null,null,null,null,null,null,null,null,null,null,null,null,null,null,null,null,null,"受付№"]
[]
[]
[null,"お 客 さ ま",null,null,null,null,"ご契約名義",null,null,null,null,"（フリガナ）",null,null,null,null,null,null,{"$f":"DBCS(MID(ASC(入力用!C3),1,1))","v":""},{"$f":"DBCS(MID(ASC(入力用!C3),2,1))","v":""},{"$f":"DBCS(MID(ASC(入力用!C3),3,1))","v":""},{"$f":"DBCS(MID(ASC(入力用!C3),4,1))","v":""},{"$f":"DBCS(MID(ASC(入力用!C3),5,1))","v":""},{"$f":"DBCS(MID(ASC(入力用!C3),6,1))","v":""},{"$f":"DBCS(MID(ASC(入力用!C3),7,1))","v":""},{"$f":"DBCS(MID(ASC(入力用!C3),8,1))","v":""},{"$f":"DBCS(MID(ASC(入力用!C3),9,1))","v":""},{"$f":"DBCS(MID(ASC(入力用!C3),10,1))","v":""},{"$f":"DBCS(MID(ASC(入力用!C3),11,1))","v":""},{"$f":"DBCS(MID(ASC(入力用!C3),12,1))","v":""},{"$f":"DBCS(MID(ASC(入力用!C3),13,1))","v":""},{"$f":"DBCS(MID(ASC(入力用!C3),14,1))","v":""},{"$f":"DBCS(MID(ASC(入力用!C3),15,1))","v":""},{"$f":"DBCS(MID(ASC(入力用!C3),16,1))","v":""},{"$f":"DBCS(MID(ASC(入力用!C3),17,1))","v":""},{"$f":"DBCS(MID(ASC(入力用!C3),18,1))","v":""},{"$f":"DBCS(MID(ASC(入力用!C3),19,1))","v":""},{"$f":"DBCS(MID(ASC(入力用!C3),20,1))","v":""},{"$f":"DBCS(MID(ASC(入力用!C3),21,1))","v":""},{"$f":"DBCS(MID(ASC(入力用!C3),22,1))","v":""},{"$f":"DBCS(MID(ASC(入力用!C3),23,1))","v":""},{"$f":"DBCS(MID(ASC(入力用!C3),24,1))","v":""},{"$f":"DBCS(MID(ASC(入力用!C3),25,1))","v":""},{"$f":"DBCS(MID(ASC(入力用!C3),26,1))","v":""},{"$f":"DBCS(MID(ASC(入力用!C3),27,1))","v":""},{"$f":"DBCS(MID(ASC(入力用!C3),28,1))","v":""},{"$f":"DBCS(MID(ASC(入力用!C3),29,1))","v":""},{"$f":"DBCS(MID(ASC(入力用!C3),30,1))","v":""},{"$f":"DBCS(MID(ASC(入力用!C3),31,1))","v":""},{"$f":"DBCS(MID(ASC(入力用!C3),32,1))","v":""},{"$f":"DBCS(MID(ASC(入力用!C3),33,1))","v":""},{"$f":"DBCS(MID(ASC(入力用!C3),34,1))","v":""},{"$f":"DBCS(MID(ASC(入力用!C3),35,1))","v":""},{"$f":"DBCS(MID(ASC(入力用!C3),36,1))","v":""},{"$f":"DBCS(MID(ASC(入力用!C3),37,1))","v":""},{"$f":"DBCS(MID(ASC(入力用!C3),38,1))","v":""},{"$f":"DBCS(MID(ASC(入力用!C3),39,1))","v":""},{"$f":"DBCS(MID(ASC(入力用!C3),40,1))","v":""},null,null,null,null,null,null,"電気工事会社",null,null,null,null," 会社名",null,null,null,null,null,{"$f":"IF(入力用!C11=\"\",\"\",入力用!C11)","v":""}]
[]
[null,null,null,null,null,null,null,null,null,null,null,{"$f":"IF(入力用!C4=\"\",\"\",入力用!C4)","v":""}]
[null,null,null,null,null,null,null,null,null,null,null,null,null,null,null,null,null,null,null,null,null,null,null,null,null,null,null,null,null,null,null,null,null,null,null,null,null,null,null,null,null,null,null,null,null,null,null,null,null,null,null,null,null,null,null,null,null,null,null,null,null,null,null,null,null,null,null,null,null,"(担当者)",null,null,null,null,null,{"$f":"IF(入力用!C12=\"\",\"\",入力用!C12)","v":""},null,null,null,null,null,null,null,null,null,null,null,null,null,null,"工事会社№（",null,null,null,null,null,null,null,null,null,{"$f":"IF(入力用!C13=\"\",\"\",入力用!C13)","v":""},null,null,"-",{"$f":"IF(入力用!E13=\"\",\"\",入力用!E13)","v":""},null,null,null,null,")"]
[]
[null,null,null,null,null,null,null,null,null,null,null,null,null,null,null,null,null,null,null,null,null,null,null,null,null,null,null,null,null,null,null,null,null,null,null,null,null,null,null,null,null,null,null,null,null,null,null,null,null,null,null,null,null,null,null,null,null,null,null,null,null,null,null,null,null,null,null,null,null," 住　所",null,null,null,null,null,{"$f":"LEFT(入力用!C14,24)","v":""}]
[null,null,null,null,null,null,null,null,null,null,null,"（代表者肩書）",null,null,null,null,null,null,null,null,{"$f":"IF(入力用!C5=\"\",\"\",入力用!C5)","v":""},null,null,null,null,null,null,null,null,null,null,null,null,null,null,null,null,null,null,"（代表者名）",null,null,null,null,null,null,null,{"$f":"IF(入力用!C6=\"\",\"\",入力用!C6)","v":""}]
[null,null,null,null,null,null,null,null,null,null,null,null,null,null,null,null,null,null,null,null,null,null,null,null,null,null,null,null,null,null,null,null,null,null,null,null,null,null,null,null,null,null,null,null,null,null,null,null,null,null,null,null,null,null,null,null,null,null,null,null,null,null,null,null,null,null,null,null,null,{"$f":"MID(入力用!C14,25,28)","v":""}]
[null,null,null,null,null,null,"ご使用\n場　所",null,null,null,null,"(〒",null,{"$f":"LEFT(入力用!C7,3)","v":""},null,null,"-",{"$f":"RIGHT(入力用!C7,4)","v":""},null,null,null,")",null,{"$f":"LEFT(入力用!C8,25)","v":""}]
[null,null,null,null,null,null,null,null,null,null,null,null,null,null,null,null,null,null,null,null,null,null,null,null,null,null,null,null,null,null,null,null,null,null,null,null,null,null,null,null,null,null,null,null,null,null,null,null,null,null,null,null,null,null,null,null,null,null,null,null,null,null,null,null,null,null,null,null,null,{"$f":"MID(入力用!C14,53,12)","v":""},null,null,null,null,null,null,null,null,null,null,null,null,null,null,null,null,null,null,null,"電話(",null,null,null,{"$f":"IF(入力用!C15=\"\",\"\",入力用!C15)","v":""},null,null,null,null,"-",{"$f":"IF(入力用!E15=\"\",\"\",入力用!E15)","v":""},null,null,null,null,"-",{"$f":"IF(入力用!H15=\"\",\"\",入力用!H15)","v":""},null,null,null,null,")"]
[]
[null,null,null,null,null,null,null,null,null,null,null,{"$f":"MID(入力用!C8,26,33)","v":""},null,null,null,null,null,null,null,null,null,null,null,null,null,null,null,null,null,null,null,null,null,null,null,null,null,null,null,null,null,null,null,null,null,null,null,null,null,null,null,null,null,null,null,null,null,null,null,null,null,null,null,null,"建築会社",null,null,null,null," 会社名",null,null,null,null,null,{"$f":"IF(入力用!C16=\"\",\"\",入力用!C16)","v":""}]
[]
[]
[null,null,null,null,null,null,"電話番号",null,null,null,null,"固定",null,null,{"$f":"IF(入力用!C9=\"\",\"\",入力用!C9)","v":""},null,null,null,null,null,"-",{"$f":"IF(入力用!E9=\"\",\"\",入力用!E9)","v":""},null,null,null,null,null,null,"-",{"$f":"IF(入力用!H9=\"\",\"\",入力用!H9)","v":""},null,null,null,null,null,null,"携帯",null,null,{"$f":"IF(入力用!C10=\"\",\"\",入力用!C10)","v":""},null,null,null,null,null,null,"-",{"$f":"IF(入力用!E10=\"\",\"\",入力用!E10)","v":""},null,null,null,null,null,null,null,"-",{"$f":"IF(入力用!H10=\"\",\"\",入力用!H10)","v":""}]
[null,null,null,null,null,null,null,null,null,null,null,null,null,null,null,null,null,null,null,null,null,null,null,null,null,null,null,null,null,null,null,null,null,null,null,null,null,null,null,null,null,null,null,null,null,null,null,null,null,null,null,null,null,null,null,null,null,null,null,null,null,null,null,null,null,null,null,null,null,"(担当者)",null,null,null,null,null,{"$f":"IF(入力用!C17=\"\",\"\",入力用!C17)","v":""},null,null,null,null,null,null,null,null,null,null,null,null,null,"電話(",null,null,null,{"$f":"IF(入力用!C18=\"\",\"\",入力用!C18)","v":""},null,null,null,null,"-",{"$f":"IF(入力用!E18=\"\",\"\",入力用!E18)","v":""},null,null,null,null,"-",{"$f":"IF(入力用!H18=\"\",\"\",入力用!H18)","v":""},null,null,null,null,")"]
[]
[null,null,null,null,null,null,"お支払\n方　法",null,null,null,null,{"$f":"IF(入力用!O19=2,入力用!O5,IF(入力用!O19=3,入力用!O6,IF(入力用!O19=4,入力用!O7,\"\")))","v":""},null,null,null,null,null,null,null,null,null,"支　払\n者　名",null,null,null,null,{"$f":"DBCS(MID(ASC(入力用!C20),1,1))","v":""},{"$f":"DBCS(MID(ASC(入力用!C20),2,1))","v":""},{"$f":"DBCS(MID(ASC(入力用!C20),3,1))","v":""},{"$f":"DBCS(MID(ASC(入力用!C20),4,1))","v":""},{"$f":"DBCS(MID(ASC(入力用!C20),5,1))","v":""},{"$f":"DBCS(MID(ASC(入力用!C20),6,1))","v":""},{"$f":"DBCS(MID(ASC(入力用!C20),7,1))","v":""},{"$f":"DBCS(MID(ASC(入力用!C20),8,1))","v":""},{"$f":"DBCS(MID(ASC(入力用!C20),9,1))","v":""},{"$f":"DBCS(MID(ASC(入力用!C20),10,1))","v":""},{"$f":"DBCS(MID(ASC(入力用!C20),11,1))","v":""},{"$f":"DBCS(MID(ASC(入力用!C20),12,1))","v":""},{"$f":"DBCS(MID(ASC(入力用!C20),13,1))","v":""},{"$f":"DBCS(MID(ASC(入力用!C20),14,1))","v":""},{"$f":"DBCS(MID(ASC(入力用!C20),15,1))","v":""},{"$f":"DBCS(MID(ASC(入力用!C20),16,1))","v":""},{"$f":"DBCS(MID(ASC(入力用!C20),17,1))","v":""},{"$f":"DBCS(MID(ASC(入力用!C20),18,1))","v":""},{"$f":"DBCS(MID(ASC(入力用!C20),19,1))","v":""},{"$f":"DBCS(MID(ASC(入力用!C20),20,1))","v":""},"請求書\n送付先",null,null,null,null,"(〒",null,{"$f":"LEFT(入力用!C22,3)","v":""},null,null,"-",{"$f":"RIGHT(入力用!C22,4)","v":""},null,null,null,")",null,{"$f":"IF(入力用!C23=\"同上\",\"\",LEFT(入力用!C23,12))","v":""},null,null,null,null,null,null,null,null,null,null,null,null,null,null,null,null,null,"ご連絡先",null,null,null,null,{"$f":"IF(OR(入力用!C25=\"同上\",入力用!C25=\"同左\"),\"\",LEFT(入力用!C25,17))","v":""}]
[]
[null,null,null,null,null,null,null,null,null,null,null,null,null,null,null,null,null,null,null,null,null,null,null,null,null,null,{"$f":"DBCS(MID(ASC(入力用!C20),21,1))","v":""},{"$f":"DBCS(MID(ASC(入力用!C20),22,1))","v":""},{"$f":"DBCS(MID(ASC(入力用!C20),23,1))","v":""},{"$f":"DBCS(MID(ASC(入力用!C20),24,1))","v":""},{"$f":"DBCS(MID(ASC(入力用!C20),25,1))","v":""},{"$f":"DBCS(MID(ASC(入力用!C20),26,1))","v":""},{"$f":"DBCS(MID(ASC(入力用!C20),27,1))","v":""},{"$f":"DBCS(MID(ASC(入力用!C20),28,1))","v":""},{"$f":"DBCS(MID(ASC(入力用!C20),29,1))","v":""},{"$f":"DBCS(MID(ASC(入力用!C20),30,1))","v":""},{"$f":"DBCS(MID(ASC(入力用!C20),31,1))","v":""},{"$f":"DBCS(MID(ASC(入力用!C20),32,1))","v":""},{"$f":"DBCS(MID(ASC(入力用!C20),33,1))","v":""},{"$f":"DBCS(MID(ASC(入力用!C20),34,1))","v":""},{"$f":"DBCS(MID(ASC(入力用!C20),35,1))","v":""},{"$f":"DBCS(MID(ASC(入力用!C20),36,1))","v":""},{"$f":"DBCS(MID(ASC(入力用!C20),37,1))","v":""},{"$f":"DBCS(MID(ASC(入力用!C20),38,1))","v":""},{"$f":"DBCS(MID(ASC(入力用!C20),39,1))","v":""},{"$f":"DBCS(MID(ASC(入力用!C20),40,1))","v":""},null,null,null,null,null,{"$f":"IF(入力用!C23=\"同上\",入力用!C23,MID(入力用!C23,13,20))","v":""},null,null,null,null,null,null,null,null,null,null,null,null,null,null,null,null,null,null,null,null,null,null,null,null,null,null,null,null,null,null,null,null,null,null,{"$f":"IF(OR(入力用!C25=\"同上\",入力用!C25=\"同左\"),入力用!C25,MID(入力用!C25,18,17))","v":""}]
[]
[null,null,null,null,null,null,null,null,null,null,null,null,null,null,null,null,null,null,null,null,null,null,null,null,null,null,{"$f":"IF(入力用!C21=\"\",\"\",入力用!C21)","v":""}]
[null,null,null,null,null,null,null,null,null,null,null,null,null,null,null,null,null,null,null,null,null,null,null,null,null,null,null,null,null,null,null,null,null,null,null,null,null,null,null,null,null,null,null,null,null,null,null,null,null,null,null,{"$f":"MID(入力用!C23,33,5)","v":""},null,null,null,null,null,null,null,"電話(",null,null,null,{"$f":"IF(入力用!C24=\"\",\"\",入力用!C24)","v":""},null,null,null,null,"-",{"$f":"IF(入力用!E24=\"\",\"\",入力用!E24)","v":""},null,null,null,null,"-",{"$f":"IF(入力用!H24=\"\",\"\",入力用!H24)","v":""},null,null,null,null,")",null,null,null,null,null,{"$f":"IF(OR(入力用!C25=\"同上\",入力用!C25=\"同左\"),\"\",MID(入力用!C25,35,1))","v":""},null,null,"電話(",null,null,null,{"$f":"IF(入力用!C26=\"\",\"\",入力用!C26)","v":""},null,null,null,null,"-",{"$f":"IF(入力用!E26=\"\",\"\",入力用!E26)","v":""},null,null,null,null,"-",{"$f":"IF(入力用!H26=\"\",\"\",入力用!H26)","v":""},null,null,null,null,")"]
[]
[null,"受　 電\n希望日",null,null,null,null,null,null,null,null,null,null,null,null,null,null,null,null,null,null,null,null,null,null,null,null,null,null,null,null,null,"契約種別",null,null,null,null,null,null,null,null,null,null,null,null,null,null,null,"業種",null,null,null,null,{"$f":"IF(入力用!P31=\"\",\"\",入力用!P31)","v":""},null,null,null,null,null,null,null,null,null,null,null,null,null,null,null,null,null,null,null,null,null,null,null,null,null,null,null,"電設Ｎｅｔ　\n申込",null,null,null,null,null,null,{"$f":"IF(入力用!O27=2,入力用!S9,IF(入力用!O27=3,入力用!S10,\"\"))","v":""}]
[null,null,null,null,null,null,null,null,null,null,null,null,null,null,null,null,null,null,null,null,null,null,null,null,null,null,null,null,null,null,null,null,null,null,null,null,null,null,null,null,null,null,null,null,null,null,null,null,null,null,null,null,null,null,null,null,null,null,null,null,null,null,null,null,null,null,null,null,null,null,null,null,null,null,null,null,null,null,null,null,null,null,null,null,null,null,null,null,null,null,null,null,null,null,null,null,null,null,null,null,null,"受付"]
[null,null,null,null,null,null,null,null,null,null,null,null,null,null,null,null,null,null,null,null,null,null,null,null,null,null,null,null,null,null,null,null,null,null,null,null,{"$f":"IF(入力用!O30=2,入力用!P5,IF(入力用!O30=3,入力用!P6,IF(入力用!O30=4,入力用!P7,IF(入力用!O30=5,入力用!P8,\"\"))))","v":""}]
[null,null,null,null,null,null,null,null,null,null,null,null,null,null,null,null,null,null,null,null,null,null,null,null,null,null,null,null,null,null,null,null,null,null,null,null,null,null,null,null,null,null,null,null,null,null,null,null,null,null,null,null,null,null,null,null,null,null,null,null,null,null,null,null,null,null,null,null,null,null,null,null,null,null,null,null,null,null,null,null,null,null,null,null,null,null,null,{"$f":"IF(入力用!C28=\"\",\"\",入力用!C28)","v":""}]
[]
[null,null,null,null,null,null,{"$f":"IF(入力用!C29=\"\",\"\",入力用!C29)","v":""},null,null,null,null,null,null,null,null,{"$f":"IF(入力用!E29=\"\",\"\",入力用!E29)","v":""},null,null,null,null,null,null,null,{"$f":"IF(入力用!H29=\"\",\"\",入力用!H29)","v":""}]
[null,null,null,null,null,null,null,null,null,null,null,null,"年",null,null,null,null,null,null,null,"月",null,null,null,null,null,null,null,"日"]
[]
[null,"供給電気\n方 式 ・\n供給電圧",null,null,null,null,{"$f":"IF(入力用!O32=2,入力用!R5,IF(入力用!O32=3,入力用!R6,IF(入力用!O32=4,入力用!R7,IF(入力用!O32=5,入力用!R8,\"\"))))","v":""},null,null,null,null,null,null,null,null,null,null,null,null,null,null,null,null,null,null,null,null,null,null,null,null,null,null,"ﾌﾘｰｴﾘｱ\n計器払\n出希望\n事業所名",null,null,null,null,null,{"$f":"IF(入力用!C33=\"\",\"\",入力用!C33)","v":""},null,null,null,null,null,null,null,null,null,null,null,null,null,null,null,null,null,null,"本契約前\nの臨時契\n約の有無",null,null,null,null,{"$f":"IF(入力用!O34=2,入力用!S5,IF(入力用!O34=3,入力用!S6,\"\"))","v":""},null,null,null,"臨時受付№(",null,null,null,null,null,null,null,null,null,null,null,")"]
[]
[]
[]
[]
[]
[null,"契約\n決定\n方法",null,null,null,null,{"$f":"IF(入力用!O35=2,入力用!T5,IF(入力用!O35=3,入力用!T6,IF(入力用!O35=4,入力用!T7,IF(入力用!O35=5,入力用!T8,IF(入力用!O35=6,入力用!T9,\"\")))))","v":""},null,null,null,null,null,null,null,null,null,null,null,null,null,null,null,null,null,null,null,null,null,null,null,"主開閉器・\n電流制限器\nの定格電流",null,null,null,null,null,null,null,null,null,null,null,null,null,"適用業種・\n容　量　別\n回路数内訳",null,null,null,null,null,{"$f":"IF(入力用!P38=\"\",\"\",入力用!P38)","v":""},null,null,null,null,null,null,null,null,null,{"$f":"IF(入力用!C38=\"\",\"\",入力用!C38)","v":""},null,null,"回路"]
[null,null,null,null,null,null,null,null,null,null,null,null,null,null,null,null,null,null,null,null,null,null,null,null,null,null,null,null,null,null,null,null,null,null,null,null,null,{"$f":"IF(入力用!C36=\"\",\"\",入力用!C36)","v":""}]
[null,null,null,null,null,null,null,null,null,null,null,null,null,null,null,null,null,null,null,null,null,null,null,null,null,null,null,null,null,null,null,null,null,null,null,null,null,null,null,null,null,null,null,null,null,null,null,null,null,null,{"$f":"IF(入力用!P40=\"\",\"\",入力用!P40)","v":""},null,null,null,null,null,null,null,null,null,{"$f":"IF(入力用!C40=\"\",\"\",入力用!C40)","v":""},null,null,"回路"]
[]
[null,null,null,null,null,null,null,null,null,null,null,null,null,null,null,null,null,null,null,null,null,null,null,null,null,null,null,null,null,null,null,null,null,null,null,null,null,null,null,null,null,null,"Ａ",null,null,null,null,null,null,null,{"$f":"IF(入力用!P42=\"\",\"\",入力用!P42)","v":""},null,null,null,null,null,null,null,null,null,{"$f":"IF(入力用!C42=\"\",\"\",入力用!C42)","v":""},null,null,"回路"]
[]
[null,"契約\n負荷\n設備\n内訳",null,null,null,null,"電      　灯",null,null,null,null,null,null,null,null,null,null,null,"小　　　型　　　機　　　器　※HPはヒートポンプ",null,null,null,null,null,null,null,null,null,null,null,null,null,null,null,null,null,null,null,null,null,null,null,null,null,null,null,null,null,null,null,null,null,null,null,null,null,null,null,null,null,"回路数",null,null,null,null,null,null,"合　計　容　量"]
[]
[null,null,null,null,null,null,{"$f":"IF(入力用!C43=\"\",\"\",入力用!C43)","v":""},null,null,null,null,null,null,null,null,"灯",null,null,{"$f":"IF(入力用!C45=\"\",\"\",入力用!C45)","v":""},null,null,null,null,null,null,null,null,"個",null,null,"うちＩＨクッキングヒーター",null,null,null,null,null,null,null,null,null,null,null,null,null,null,{"$f":"IF(入力用!C47=\"\",\"\",入力用!C47)","v":""},null,null,"台",null,{"$f":"IF(入力用!D48=\"\",\"\",入力用!D48)","v":""},null,null,null,null,null,null,"ＶＡ",null,null,{"$f":"IF(入力用!C56=\"\",\"\",入力用!C56)","v":""},null,null,null,null,null,null,{"$f":"IF(OR(入力用!O35=2,入力用!O35=3,入力用!O35=6,入力用!O36=1,入力用!Q48=0),\"\",入力用!Q48)","v":""}]
[]
[null,null,null,null,null,null,null,null,null,null,null,null,null,null,null,null,null,null,null,null,null,null,null,null,null,null,null,null,null,null,"(メーカー)",null,null,null,null,null,{"$f":"IF(入力用!E49=\"\",\"\",入力用!E49)","v":""},null,null,null,null,null,null,"(型式)",null,null,null,{"$f":"IF(入力用!E50=\"\",\"\",入力用!E50)","v":""}]
[null,null,null,null,null,null,null,null,null,null,null,null,null,null,null,null,null,null,null,null,null,null,null,null,null,null,null,null,null,null,null,null,null,null,null,null,null,null,null,null,null,null,null,null,null,null,null,null,null,null,null,null,null,null,null,null,null,null,null,null,null,null,null,null,null,null,null,null,null,null,null,null,null,null,null,null,null,null,null,null,{"$f":"IF(入力用!O30<4,\"契約電流\",\"契約容量\")","v":"契約電流"},null,null,null,null,null,null,null,null,{"$f":"IF(入力用!O36=1,\"\",IF(入力用!Q47=\"\",\"\",入力用!Q47))","v":""},null,null,null,null,null,null,{"$f":"IF(入力用!O30<4,\"A\",\"kVA\")","v":"A"}]
[null,null,null,null,null,null,{"$f":"IF(入力用!C44=\"\",\"\",入力用!C44)","v":""},null,null,null,null,null,null,null,null,"ＶＡ",null,null,{"$f":"IF(入力用!C46=\"\",\"\",入力用!C46)","v":""},null,null,null,null,null,null,null,null,"ＶＡ",null,null,{"$f":"IF(入力用!O51=2,入力用!O11,IF(入力用!O51=3,入力用!O12,IF(入力用!O51=4,入力用!K51,\"\")))","v":""},null,null,null,null,null,null,null,null,null,null,null,null,null,null,{"$f":"IF(入力用!C52=\"\",\"\",入力用!C52)","v":""},null,null,"台",null,{"$f":"IF(入力用!D53=\"\",\"\",入力用!D53)","v":""},null,null,null,null,null,null,"ＶＡ",null,null,null,null,null,null,null,null,null,null,null,null,null,null,null,null,null,null,"ＶＡ"]
[]
[null,null,null,null,null,null,null,null,null,null,null,null,null,null,null,null,null,null,null,null,null,null,null,null,null,null,null,null,null,null,"(メーカー)",null,null,null,null,null,{"$f":"IF(入力用!E54=\"\",\"\",入力用!E54)","v":""},null,null,null,null,null,null,"(型式)",null,null,null,{"$f":"IF(入力用!E55=\"\",\"\",入力用!E55)","v":""}]
[]
[null,"異動種別",null,null,"・新設　　 　・減少　 　　　・転出",null,null,null,null,null,null,null,null,null,null,null,null,null,null,null,null,null,null,null,null,null,null,null,"供給地点特定番号",null,null,null,null,null,null,null,"発行\n回数",null,null,"支店",null,"ﾌﾞﾛｯｸ",null,null,"住所",null,null,null,null,"街区",null,null,"契約№",null,null,null,null,"枝番",null,null,"種別",null,null,null,null,null,"送電日\n（異動日）"]
[]
[null,null,null,null,"・種変(+)　　・設備撤去　　・名義変更"]
[]
[null,null,null,null,"・ｺｰﾄﾞ変(+)　・設備変更　　 ・その他",null,null,null,null,null,null,null,null,null,null,null,null,null,null,null,null,null,null,null,null,null,null,null,null,null,null,"010",null,null,null,null,null,null,null,null,null,null,null,null,null,null,null,null,null,null,null,null,null,null,null,null,null,null,null,null,{"$f":"'３枚目'!AK41","v":""},null,null,"00"]
[]
[null,null,null,null,"・増加　　 　・転入　　　　（　　　　）",null,null,null,null,null,null,null,null,null,null,null,null,null,null,null,null,null,null,null,null,null,null,null,null,null,null,null,null,null,null,null,null,null,null,null,null,null,null,null,null,null,null,null,null,null,null,null,null,null,null,null,null,null,null,null,null,null,null,null,null,null,null,null,null,null,null,"年",null,null,null,"月",null,null,null,"日"]
[]
[]
[null,"　※　太枠内をご記入願います。"]
[]
[null,"　※　ご契約名義，お支払方法またはアンペア変更をご希望の場合は，カスタマーサービスセンター（0120-680-340）までご連絡ください。"]
[]
[null,"　※　ご提供いただいた個人情報は，電気事業の範囲内で利用いたします。"]
[]
[]
[null,null,null,"拝啓　平素は弊社事業に格別のお引き立てを賜り，厚くお礼申し上げます。５６７８９０"]
[]
[]
[null,null,null,"　さて，この度お客さまの電気ご使用につきまして，本申込書記載の内容にてご契約させ"]
[]
[]
[null,null,null,"ていただきましたことをお知らせいたします。２３４５６７８９０１２３４５６７８９０"]
[]
[]
[null,null,null,"　また，「ご契約内容のお知らせについて」を別途送付させていただきますので，あわせ"]
[]
[]
[null,null,null,"てご確認いただきますようお願いいたします。２３４５６７８９０１２３４５６７８９０"]
[]
[]
[null,null,null,"１２３４５６７８９０１２３４５６７８９０１２３４５６７８９０１２３４５６７敬具０"]
[]
[]
[]
[null,"＜連絡事項＞"]
[]
[]
[]
[]
[]
[]
[]
[]
[]
[]
[]
[]
[]
[]
[]
[]
[]
[]
[]
[]
[]
[]
[]
[]
[]
[]
[]
[]
[]
[]
[]
[]
[]
[]
[]
[]
[]
[]
[]
[]
[]
[]
[]
[]
[]
[]
[]
[]
[]
[]
[]
[]
[]
[]
[]
[]
["北　海　道　電　力　ネ　ッ　ト　ワ　ー　ク　株　式　会　社"]

{"sheet":"３枚目","index":3,"n_rows":286,"n_cols":111,"rows_kept":286,"cut":false,"hidden":false,"merged":[[1,93,5,109],[159,84,160,87],[159,88,160,93],[159,94,160,96],[159,97,160,99],[151,84,152,99],[153,80,156,83],[153,84,158,85],[153,86,154,89],[153,90,154,99],[155,86,156,89],[155,90,156,99],[157,80,160,83],[10,1,11,25],[12,1,13,38],[150,20,160,21],[150,22,151,29],[150,30,151,51],[150,52,151,78],[152,22,160,29],[38,75,39,79],[48,67,50,73],[48,74,50,78],[38,63,39,67],[38,68,39,68],[38,69,39,73],[38,74,39,74],[33,63,34,80],[37,26,39,45],[152,57,154,59],[152,60,154,64],[152,65,154,67],[152,68,154,72],[152,73,154,75],[155,55,157,56],[155,57,157,59],[155,60,157,64],[35,86,37,110],[78,61,79,63],[113,101,120,102],[157,86,158,89],[129,101,136,102],[129,103,136,110],[137,101,144,102],[97,101,104,102],[81,101,88,102],[81,103,88,110],[97,103,104,110],[105,101,112,102],[105,103,112,110],[137,103,144,110],[121,101,128,102],[121,103,128,110],[90,97,91,99],[155,76,157,78],[157,90,158,99],[74,60,77,62],[70,66,77,70],[90,94,91,96],[82,94,85,96],[197,101,204,102],[189,103,196,110],[213,101,220,102],[205,101,212,102],[181,103,188,110],[24,6,29,10],[30,28,32,28],[30,29,32,35],[30,39,32,45],[30,46,32,46],[24,11,26,12],[24,13,26,15],[24,16,26,16],[155,52,157,54],[27,11,29,63],[30,14,32,19],[38,93,39,97],[38,98,39,98],[152,76,154,78],[152,52,154,54],[152,55,154,56],[90,73,91,75],[92,73,95,75],[33,86,34,110],[90,81,91,85],[80,81,81,83],[70,79,75,82],[78,74,81,77],[76,71,77,74],[76,75,77,78],[76,79,77,82],[82,91,85,93],[82,82,85,84],[90,86,91,88],[82,88,85,90],[82,85,85,87],[90,89,91,93],[86,88,89,90],[82,79,89,81],[86,82,89,84],[92,86,95,88],[78,1,81,3],[70,4,71,27],[72,4,73,27],[74,4,75,27],[76,4,77,27],[70,39,73,40],[48,1,53,5],[70,1,77,3],[54,1,59,5],[60,1,69,5],[62,18,65,26],[62,27,65,29],[66,6,69,14],[66,15,69,17],[66,18,69,26],[66,27,69,29],[62,30,63,44],[64,30,65,35],[64,36,65,42],[64,43,65,46],[54,30,59,36],[70,28,77,30],[70,44,73,48],[73,101,80,102],[73,103,80,110],[70,75,75,78],[80,54,81,63],[80,64,81,73],[78,78,81,80],[41,103,48,110],[49,103,56,110],[54,88,56,89],[41,101,48,102],[40,87,42,99],[43,87,45,99],[70,52,73,56],[46,28,47,30],[58,63,59,66],[62,57,63,59],[62,48,63,49],[64,47,65,59],[66,50,67,56],[48,39,53,57],[55,37,59,41],[60,67,61,79],[62,50,63,56],[54,6,59,29],[54,44,59,49],[62,6,65,14],[62,15,65,17],[48,79,50,79],[74,41,77,43],[70,57,73,59],[70,49,73,51],[74,49,77,51],[78,64,79,73],[78,34,79,43],[78,44,79,53],[74,57,77,59],[74,52,77,56],[70,71,75,74],[74,39,77,40],[74,44,77,48],[30,6,32,10],[30,11,32,13],[30,36,32,38],[60,6,61,17],[60,18,61,59],[58,50,59,59],[54,50,55,59],[56,50,57,59],[33,81,39,85],[35,39,36,39],[33,11,39,20],[33,41,34,41],[33,42,34,42],[33,43,34,43],[33,44,34,44],[45,23,47,27],[45,15,47,19],[45,6,47,11],[46,12,47,14],[46,20,47,22],[58,60,59,62],[56,63,57,66],[54,63,55,66],[42,36,47,46],[38,99,39,103],[38,110,39,110],[38,104,39,104],[38,105,39,109],[38,86,39,88],[38,89,39,92],[33,6,39,10],[33,46,39,50],[35,26,36,26],[35,27,36,27],[35,28,36,28],[35,29,36,29],[35,30,36,30],[35,31,36,31],[35,32,36,32],[35,33,36,33],[35,34,36,34],[35,44,36,44],[35,45,36,45],[35,35,36,35],[35,36,36,36],[35,37,36,37],[35,38,36,38],[33,21,39,25],[86,85,89,87],[6,0,9,110],[13,64,15,68],[16,1,39,5],[13,85,15,89],[16,6,23,10],[48,88,50,93],[51,81,53,87],[40,1,47,5],[48,6,53,32],[30,20,32,20],[30,21,32,27],[38,59,39,62],[30,47,32,54],[30,56,32,63],[30,55,32,55],[51,90,53,99],[48,94,50,99],[51,88,53,89],[48,81,50,87],[48,33,53,38],[48,58,53,62],[40,52,47,79],[48,63,53,66],[80,4,81,13],[78,54,79,60],[90,4,92,22],[93,4,95,22],[80,34,81,43],[90,23,95,25],[92,26,93,40],[94,26,95,40],[92,44,93,58],[82,10,89,12],[90,26,91,40],[82,25,83,33],[86,25,87,33],[84,25,85,33],[82,13,89,21],[86,4,89,9],[82,4,85,9],[90,44,91,58],[82,22,89,24],[78,14,79,23],[78,4,79,10],[90,1,95,3],[113,103,120,110],[96,1,100,4],[94,44,95,58],[82,34,89,38],[82,39,85,58],[86,39,89,58],[107,1,109,16],[96,26,100,39],[96,40,100,42],[96,43,100,56],[96,57,100,62],[96,63,100,79],[96,80,100,83],[96,84,100,93],[88,25,89,33],[82,1,89,3],[90,59,95,61],[91,62,95,65],[82,97,85,99],[90,41,95,43],[89,101,96,102],[89,103,96,110],[90,76,91,77],[92,81,95,85],[293,101,300,102],[293,103,300,110],[253,109,260,110],[269,101,276,102],[245,101,252,102],[221,103,228,110],[253,103,260,108],[221,101,228,102],[205,103,212,110],[213,103,220,110],[277,103,284,110],[229,101,236,102],[229,103,236,110],[285,101,292,102],[285,103,292,110],[277,101,284,102],[269,103,276,110],[245,103,252,110],[261,101,268,102],[261,103,268,110],[253,101,260,102],[237,103,244,110],[237,101,244,102],[25,89,26,92],[19,75,20,89],[19,90,20,99],[19,69,20,74],[25,99,26,103],[25,110,26,110],[25,69,26,88],[181,101,188,102],[197,103,204,110],[189,101,196,102],[90,68,95,72],[92,78,95,80],[25,104,26,104],[25,105,26,109],[92,76,95,77],[90,78,91,80],[86,97,89,99],[86,91,89,93],[86,94,89,96],[54,90,56,99],[54,81,56,87],[57,103,64,110],[65,103,72,110],[40,80,45,86],[31,110,32,110],[31,99,32,103],[31,104,32,104],[19,103,20,103],[19,100,20,102],[19,104,20,108],[23,69,24,110],[27,64,32,68],[16,64,26,68],[25,93,26,97],[25,98,26,98],[31,93,32,97],[19,109,20,110],[21,69,22,74],[21,75,22,110],[27,69,30,74],[27,75,30,110],[31,69,32,74],[31,75,32,88],[31,89,32,92],[31,98,32,98],[31,105,32,109],[16,69,18,74],[16,75,18,110],[13,90,15,110],[68,30,69,35],[68,36,69,42],[66,30,67,44],[57,101,64,102],[66,76,69,79],[65,80,69,88],[65,89,69,95],[65,96,69,99],[68,43,69,46],[68,47,69,59],[66,57,67,59],[60,60,61,66],[62,60,69,66],[62,45,63,47],[66,45,67,47],[58,42,59,43],[13,69,15,84],[16,58,17,63],[56,60,57,62],[54,60,55,62],[65,101,72,102],[62,67,69,75],[49,101,56,102],[33,56,34,56],[33,57,34,60],[33,61,34,62],[16,49,17,49],[16,50,17,50],[16,51,17,51],[16,52,17,52],[16,53,17,53],[16,47,17,47],[16,48,17,48],[22,47,23,63],[16,54,17,54],[16,25,17,25],[16,26,17,26],[16,11,17,17],[22,11,23,19],[16,33,17,33],[16,34,17,34],[16,35,17,35],[33,51,34,52],[33,53,34,55],[22,39,23,46],[16,42,17,42],[16,43,17,43],[16,44,17,44],[16,39,17,39],[16,40,17,40],[16,41,17,41],[33,45,34,45],[16,45,17,45],[16,46,17,46],[24,23,26,63],[18,11,21,63],[16,27,17,27],[16,28,17,28],[16,29,17,29],[16,30,17,30],[16,31,17,31],[16,32,17,32],[24,17,26,20],[24,21,26,22],[22,20,23,38],[16,36,17,36],[16,37,17,37],[16,38,17,38],[16,18,17,18],[16,19,17,19],[16,20,17,20],[16,21,17,21],[16,22,17,22],[16,23,17,23],[16,24,17,24],[74,63,77,65],[70,60,73,62],[80,24,81,33],[78,24,79,33],[74,36,77,38],[66,48,67,49],[16,55,17,55],[16,56,17,56],[16,57,17,57],[33,26,34,26],[33,27,34,27],[33,28,34,28],[33,29,34,29],[33,30,34,30],[33,31,34,31],[33,32,34,32],[33,33,34,33],[33,34,34,34],[33,35,34,35],[33,36,34,36],[33,37,34,37],[33,38,34,38],[33,39,34,39],[33,40,34,40],[35,40,36,40],[35,41,36,41],[35,42,36,42],[35,43,36,43],[40,31,47,35],[70,36,73,38],[40,36,41,46],[35,51,37,80],[38,51,39,58],[38,80,39,80],[70,63,73,65],[51,67,53,79],[40,47,47,51],[70,41,73,43],[158,76,160,78],[158,55,160,56],[158,57,160,59],[158,60,160,64],[155,73,157,75],[70,31,73,35],[145,101,152,102],[145,103,152,110],[96,5,100,21],[96,22,100,25],[94,66,95,67],[78,11,79,13],[80,14,81,23],[80,44,81,53],[155,30,157,51],[158,30,160,51],[158,52,160,54],[158,65,160,67],[158,68,160,72],[155,68,157,72],[155,65,157,67],[158,73,160,75],[152,30,154,51],[74,31,77,35]]}
[]
[null,null,null,null,null,null,null,null,null,null,null,null,null,null,null,null,null,null,null,null,null,null,null,null,null,null,null,null,null,null,null,null,null,null,null,null,null,null,null,null,null,null,null,null,null,null,null,null,null,null,null,null,null,null,null,null,null,null,null,null,null,null,null,null,null,null,null,null,null,null,null,null,null,null,null,null,null,null,null,null,null,null,null,null,null,null,null,null,null,null,null,null,null,"離島等供給用"]
[]
[]
[]
[]
["従量制電灯電気使用申込書（ほくでんＮＷ控）"]
[]
[]
[]
[null,"北海道電力ネットワーク株式会社　御中"]
[]
[null,"電気の使用について貴社離島等供給約款[低圧用]を承認のうえ申し込みます。"]
[null,null,null,null,null,null,null,null,null,null,null,null,null,null,null,null,null,null,null,null,null,null,null,null,null,null,null,null,null,null,null,null,null,null,null,null,null,null,null,null,null,null,null,null,null,null,null,null,null,null,null,null,null,null,null,null,null,null,null,null,null,null,null,null,"受付扱所名",null,null,null,null,null,null,null,null,null,null,null,null,null,null,null,null,null,null,null,null,"受付№"]
[]
[]
[null,"お 客 さ ま",null,null,null,null,"ご契約名義",null,null,null,null,"（フリガナ）",null,null,null,null,null,null,{"$f":"DBCS(MID(ASC(入力用!C3),1,1))","v":""},{"$f":"DBCS(MID(ASC(入力用!C3),2,1))","v":""},{"$f":"DBCS(MID(ASC(入力用!C3),3,1))","v":""},{"$f":"DBCS(MID(ASC(入力用!C3),4,1))","v":""},{"$f":"DBCS(MID(ASC(入力用!C3),5,1))","v":""},{"$f":"DBCS(MID(ASC(入力用!C3),6,1))","v":""},{"$f":"DBCS(MID(ASC(入力用!C3),7,1))","v":""},{"$f":"DBCS(MID(ASC(入力用!C3),8,1))","v":""},{"$f":"DBCS(MID(ASC(入力用!C3),9,1))","v":""},{"$f":"DBCS(MID(ASC(入力用!C3),10,1))","v":""},{"$f":"DBCS(MID(ASC(入力用!C3),11,1))","v":""},{"$f":"DBCS(MID(ASC(入力用!C3),12,1))","v":""},{"$f":"DBCS(MID(ASC(入力用!C3),13,1))","v":""},{"$f":"DBCS(MID(ASC(入力用!C3),14,1))","v":""},{"$f":"DBCS(MID(ASC(入力用!C3),15,1))","v":""},{"$f":"DBCS(MID(ASC(入力用!C3),16,1))","v":""},{"$f":"DBCS(MID(ASC(入力用!C3),17,1))","v":""},{"$f":"DBCS(MID(ASC(入力用!C3),18,1))","v":""},{"$f":"DBCS(MID(ASC(入力用!C3),19,1))","v":""},{"$f":"DBCS(MID(ASC(入力用!C3),20,1))","v":""},{"$f":"DBCS(MID(ASC(入力用!C3),21,1))","v":""},{"$f":"DBCS(MID(ASC(入力用!C3),22,1))","v":""},{"$f":"DBCS(MID(ASC(入力用!C3),23,1))","v":""},{"$f":"DBCS(MID(ASC(入力用!C3),24,1))","v":""},{"$f":"DBCS(MID(ASC(入力用!C3),25,1))","v":""},{"$f":"DBCS(MID(ASC(入力用!C3),26,1))","v":""},{"$f":"DBCS(MID(ASC(入力用!C3),27,1))","v":""},{"$f":"DBCS(MID(ASC(入力用!C3),28,1))","v":""},{"$f":"DBCS(MID(ASC(入力用!C3),29,1))","v":""},{"$f":"DBCS(MID(ASC(入力用!C3),30,1))","v":""},{"$f":"DBCS(MID(ASC(入力用!C3),31,1))","v":""},{"$f":"DBCS(MID(ASC(入力用!C3),32,1))","v":""},{"$f":"DBCS(MID(ASC(入力用!C3),33,1))","v":""},{"$f":"DBCS(MID(ASC(入力用!C3),34,1))","v":""},{"$f":"DBCS(MID(ASC(入力用!C3),35,1))","v":""},{"$f":"DBCS(MID(ASC(入力用!C3),36,1))","v":""},{"$f":"DBCS(MID(ASC(入力用!C3),37,1))","v":""},{"$f":"DBCS(MID(ASC(入力用!C3),38,1))","v":""},{"$f":"DBCS(MID(ASC(入力用!C3),39,1))","v":""},{"$f":"DBCS(MID(ASC(入力用!C3),40,1))","v":""},null,null,null,null,null,null,"電気工事会社",null,null,null,null," 会社名",null,null,null,null,null,{"$f":"IF(入力用!C11=\"\",\"\",入力用!C11)","v":""}]
[]
[null,null,null,null,null,null,null,null,null,null,null,{"$f":"IF(入力用!C4=\"\",\"\",入力用!C4)","v":""}]
[null,null,null,null,null,null,null,null,null,null,null,null,null,null,null,null,null,null,null,null,null,null,null,null,null,null,null,null,null,null,null,null,null,null,null,null,null,null,null,null,null,null,null,null,null,null,null,null,null,null,null,null,null,null,null,null,null,null,null,null,null,null,null,null,null,null,null,null,null,"(担当者)",null,null,null,null,null,{"$f":"IF(入力用!C12=\"\",\"\",入力用!C12)","v":""},null,null,null,null,null,null,null,null,null,null,null,null,null,null,"工事会社№（",null,null,null,null,null,null,null,null,null,{"$f":"IF(入力用!C13=\"\",\"\",入力用!C13)","v":""},null,null,"-",{"$f":"IF(入力用!E13=\"\",\"\",入力用!E13)","v":""},null,null,null,null,")"]
[]
[null,null,null,null,null,null,null,null,null,null,null,null,null,null,null,null,null,null,null,null,null,null,null,null,null,null,null,null,null,null,null,null,null,null,null,null,null,null,null,null,null,null,null,null,null,null,null,null,null,null,null,null,null,null,null,null,null,null,null,null,null,null,null,null,null,null,null,null,null," 住　所",null,null,null,null,null,{"$f":"LEFT(入力用!C14,24)","v":""}]
[null,null,null,null,null,null,null,null,null,null,null,"（代表者肩書）",null,null,null,null,null,null,null,null,{"$f":"IF(入力用!C5=\"\",\"\",入力用!C5)","v":""},null,null,null,null,null,null,null,null,null,null,null,null,null,null,null,null,null,null,"（代表者名）",null,null,null,null,null,null,null,{"$f":"IF(入力用!C6=\"\",\"\",入力用!C6)","v":""}]
[null,null,null,null,null,null,null,null,null,null,null,null,null,null,null,null,null,null,null,null,null,null,null,null,null,null,null,null,null,null,null,null,null,null,null,null,null,null,null,null,null,null,null,null,null,null,null,null,null,null,null,null,null,null,null,null,null,null,null,null,null,null,null,null,null,null,null,null,null,{"$f":"MID(入力用!C14,25,28)","v":""}]
[null,null,null,null,null,null,"ご使用\n場　所",null,null,null,null,"(〒",null,{"$f":"LEFT(入力用!C7,3)","v":""},null,null,"-",{"$f":"RIGHT(入力用!C7,4)","v":""},null,null,null,")",null,{"$f":"LEFT(入力用!C8,25)","v":""}]
[null,null,null,null,null,null,null,null,null,null,null,null,null,null,null,null,null,null,null,null,null,null,null,null,null,null,null,null,null,null,null,null,null,null,null,null,null,null,null,null,null,null,null,null,null,null,null,null,null,null,null,null,null,null,null,null,null,null,null,null,null,null,null,null,null,null,null,null,null,{"$f":"MID(入力用!C14,53,12)","v":""},null,null,null,null,null,null,null,null,null,null,null,null,null,null,null,null,null,null,null,"電話(",null,null,null,{"$f":"IF(入力用!C15=\"\",\"\",入力用!C15)","v":""},null,null,null,null,"-",{"$f":"IF(入力用!E15=\"\",\"\",入力用!E15)","v":""},null,null,null,null,"-",{"$f":"IF(入力用!H15=\"\",\"\",入力用!H15)","v":""},null,null,null,null,")"]
[]
[null,null,null,null,null,null,null,null,null,null,null,{"$f":"MID(入力用!C8,26,33)","v":""},null,null,null,null,null,null,null,null,null,null,null,null,null,null,null,null,null,null,null,null,null,null,null,null,null,null,null,null,null,null,null,null,null,null,null,null,null,null,null,null,null,null,null,null,null,null,null,null,null,null,null,null,"建築会社",null,null,null,null," 会社名",null,null,null,null,null,{"$f":"IF(入力用!C16=\"\",\"\",入力用!C16)","v":""}]
[]
[]
[null,null,null,null,null,null,"電話番号",null,null,null,null,"固定",null,null,{"$f":"IF(入力用!C9=\"\",\"\",入力用!C9)","v":""},null,null,null,null,null,"-",{"$f":"IF(入力用!E9=\"\",\"\",入力用!E9)","v":""},null,null,null,null,null,null,"-",{"$f":"IF(入力用!H9=\"\",\"\",入力用!H9)","v":""},null,null,null,null,null,null,"携帯",null,null,{"$f":"IF(入力用!C10=\"\",\"\",入力用!C10)","v":""},null,null,null,null,null,null,"-",{"$f":"IF(入力用!E10=\"\",\"\",入力用!E10)","v":""},null,null,null,null,null,null,null,"-",{"$f":"IF(入力用!H10=\"\",\"\",入力用!H10)","v":""}]
[null,null,null,null,null,null,null,null,null,null,null,null,null,null,null,null,null,null,null,null,null,null,null,null,null,null,null,null,null,null,null,null,null,null,null,null,null,null,null,null,null,null,null,null,null,null,null,null,null,null,null,null,null,null,null,null,null,null,null,null,null,null,null,null,null,null,null,null,null,"(担当者)",null,null,null,null,null,{"$f":"IF(入力用!C17=\"\",\"\",入力用!C17)","v":""},null,null,null,null,null,null,null,null,null,null,null,null,null,"電話(",null,null,null,{"$f":"IF(入力用!C18=\"\",\"\",入力用!C18)","v":""},null,null,null,null,"-",{"$f":"IF(入力用!E18=\"\",\"\",入力用!E18)","v":""},null,null,null,null,"-",{"$f":"IF(入力用!H18=\"\",\"\",入力用!H18)","v":""},null,null,null,null,")"]
[]
[null,null,null,null,null,null,"お支払\n方　法",null,null,null,null,{"$f":"IF(入力用!O19=2,入力用!O5,IF(入力用!O19=3,入力用!O6,IF(入力用!O19=4,入力用!O7,\"\")))","v":""},null,null,null,null,null,null,null,null,null,"支　払\n者　名",null,null,null,null,{"$f":"DBCS(MID(ASC(入力用!C20),1,1))","v":""},{"$f":"DBCS(MID(ASC(入力用!C20),2,1))","v":""},{"$f":"DBCS(MID(ASC(入力用!C20),3,1))","v":""},{"$f":"DBCS(MID(ASC(入力用!C20),4,1))","v":""},{"$f":"DBCS(MID(ASC(入力用!C20),5,1))","v":""},{"$f":"DBCS(MID(ASC(入力用!C20),6,1))","v":""},{"$f":"DBCS(MID(ASC(入力用!C20),7,1))","v":""},{"$f":"DBCS(MID(ASC(入力用!C20),8,1))","v":""},{"$f":"DBCS(MID(ASC(入力用!C20),9,1))","v":""},{"$f":"DBCS(MID(ASC(入力用!C20),10,1))","v":""},{"$f":"DBCS(MID(ASC(入力用!C20),11,1))","v":""},{"$f":"DBCS(MID(ASC(入力用!C20),12,1))","v":""},{"$f":"DBCS(MID(ASC(入力用!C20),13,1))","v":""},{"$f":"DBCS(MID(ASC(入力用!C20),14,1))","v":""},{"$f":"DBCS(MID(ASC(入力用!C20),15,1))","v":""},{"$f":"DBCS(MID(ASC(入力用!C20),16,1))","v":""},{"$f":"DBCS(MID(ASC(入力用!C20),17,1))","v":""},{"$f":"DBCS(MID(ASC(入力用!C20),18,1))","v":""},{"$f":"DBCS(MID(ASC(入力用!C20),19,1))","v":""},{"$f":"DBCS(MID(ASC(入力用!C20),20,1))","v":""},"請求書\n送付先",null,null,null,null,"(〒",null,{"$f":"LEFT(入力用!C22,3)","v":""},null,null,"-",{"$f":"RIGHT(入力用!C22,4)","v":""},null,null,null,")",null,{"$f":"IF(入力用!C23=\"同上\",\"\",LEFT(入力用!C23,12))","v":""},null,null,null,null,null,null,null,null,null,null,null,null,null,null,null,null,null,"ご連絡先",null,null,null,null,{"$f":"IF(OR(入力用!C25=\"同上\",入力用!C25=\"同左\"),\"\",LEFT(入力用!C25,17))","v":""}]
[]
[null,null,null,null,null,null,null,null,null,null,null,null,null,null,null,null,null,null,null,null,null,null,null,null,null,null,{"$f":"DBCS(MID(ASC(入力用!C20),21,1))","v":""},{"$f":"DBCS(MID(ASC(入力用!C20),22,1))","v":""},{"$f":"DBCS(MID(ASC(入力用!C20),23,1))","v":""},{"$f":"DBCS(MID(ASC(入力用!C20),24,1))","v":""},{"$f":"DBCS(MID(ASC(入力用!C20),25,1))","v":""},{"$f":"DBCS(MID(ASC(入力用!C20),26,1))","v":""},{"$f":"DBCS(MID(ASC(入力用!C20),27,1))","v":""},{"$f":"DBCS(MID(ASC(入力用!C20),28,1))","v":""},{"$f":"DBCS(MID(ASC(入力用!C20),29,1))","v":""},{"$f":"DBCS(MID(ASC(入力用!C20),30,1))","v":""},{"$f":"DBCS(MID(ASC(入力用!C20),31,1))","v":""},{"$f":"DBCS(MID(ASC(入力用!C20),32,1))","v":""},{"$f":"DBCS(MID(ASC(入力用!C20),33,1))","v":""},{"$f":"DBCS(MID(ASC(入力用!C20),34,1))","v":""},{"$f":"DBCS(MID(ASC(入力用!C20),35,1))","v":""},{"$f":"DBCS(MID(ASC(入力用!C20),36,1))","v":""},{"$f":"DBCS(MID(ASC(入力用!C20),37,1))","v":""},{"$f":"DBCS(MID(ASC(入力用!C20),38,1))","v":""},{"$f":"DBCS(MID(ASC(入力用!C20),39,1))","v":""},{"$f":"DBCS(MID(ASC(入力用!C20),40,1))","v":""},null,null,null,null,null,{"$f":"IF(入力用!C23=\"同上\",入力用!C23,MID(入力用!C23,13,20))","v":""},null,null,null,null,null,null,null,null,null,null,null,null,null,null,null,null,null,null,null,null,null,null,null,null,null,null,null,null,null,null,null,null,null,null,{"$f":"IF(OR(入力用!C25=\"同上\",入力用!C25=\"同左\"),入力用!C25,MID(入力用!C25,18,17))","v":""}]
[]
[null,null,null,null,null,null,null,null,null,null,null,null,null,null,null,null,null,null,null,null,null,null,null,null,null,null,{"$f":"IF(入力用!C21=\"\",\"\",入力用!C21)","v":""}]
[null,null,null,null,null,null,null,null,null,null,null,null,null,null,null,null,null,null,null,null,null,null,null,null,null,null,null,null,null,null,null,null,null,null,null,null,null,null,null,null,null,null,null,null,null,null,null,null,null,null,null,{"$f":"MID(入力用!C23,33,5)","v":""},null,null,null,null,null,null,null,"電話(",null,null,null,{"$f":"IF(入力用!C24=\"\",\"\",入力用!C24)","v":""},null,null,null,null,"-",{"$f":"IF(入力用!E24=\"\",\"\",入力用!E24)","v":""},null,null,null,null,"-",{"$f":"IF(入力用!H24=\"\",\"\",入力用!H24)","v":""},null,null,null,null,")",null,null,null,null,null,{"$f":"IF(OR(入力用!C25=\"同上\",入力用!C25=\"同左\"),\"\",MID(入力用!C25,35,1))","v":""},null,null,"電話(",null,null,null,{"$f":"IF(入力用!C26=\"\",\"\",入力用!C26)","v":""},null,null,null,null,"-",{"$f":"IF(入力用!E26=\"\",\"\",入力用!E26)","v":""},null,null,null,null,"-",{"$f":"IF(入力用!H26=\"\",\"\",入力用!H26)","v":""},null,null,null,null,")"]
[]
[null,"受　 電\n希望日",null,null,null,null,null,null,null,null,null,null,null,null,null,null,null,null,null,null,null,null,null,null,null,null,null,null,null,null,null,"契約種別",null,null,null,null,{"$f":"IF(入力用!O30=2,\"11\",IF(入力用!O30=3,\"21\",IF(入力用!O30=4,\"31\",IF(入力用!O30=5,\"22\",\"\"))))","v":""},null,null,null,null,null,null,null,null,null,null,"業種",null,null,null,null,{"$f":"IF(入力用!P31=\"\",\"\",入力用!P31)","v":""},null,null,null,null,null,null,null,null,null,null,null,null,null,null,null,null,null,null,null,null,null,null,null,null,null,null,null,"電設Ｎｅｔ　\n申込",null,null,null,null,null,null,{"$f":"IF(入力用!O27=2,入力用!S9,IF(入力用!O27=3,入力用!S10,\"\"))","v":""}]
[null,null,null,null,null,null,null,null,null,null,null,null,null,null,null,null,null,null,null,null,null,null,null,null,null,null,null,null,null,null,null,null,null,null,null,null,null,null,null,null,null,null,null,null,null,null,null,null,null,null,null,null,null,null,null,null,null,null,null,null,null,null,null,null,null,null,null,null,null,null,null,null,null,null,null,null,null,null,null,null,null,null,null,null,null,null,null,null,null,null,null,null,null,null,null,null,null,null,null,null,null,"受付"]
[null,null,null,null,null,null,null,null,null,null,null,null,null,null,null,null,null,null,null,null,null,null,null,null,null,null,null,null,null,null,null,null,null,null,null,null,{"$f":"IF(入力用!O30=2,入力用!P5,IF(入力用!O30=3,入力用!P6,IF(入力用!O30=4,入力用!P7,IF(入力用!O30=5,入力用!P8,\"\"))))","v":""}]
[null,null,null,null,null,null,null,null,null,null,null,null,null,null,null,null,null,null,null,null,null,null,null,null,null,null,null,null,null,null,null,null,null,null,null,null,null,null,null,null,null,null,null,null,null,null,null,null,null,null,null,null,null,null,null,null,null,null,null,null,null,null,null,null,null,null,null,null,null,null,null,null,null,null,null,null,null,null,null,null,null,null,null,null,null,null,null,{"$f":"IF(入力用!C28=\"\",\"\",入力用!C28)","v":""}]
[]
[null,null,null,null,null,null,{"$f":"IF(入力用!C29=\"\",\"\",入力用!C29)","v":""},null,null,null,null,null,null,null,null,{"$f":"IF(入力用!E29=\"\",\"\",入力用!E29)","v":""},null,null,null,null,null,null,null,{"$f":"IF(入力用!H29=\"\",\"\",入力用!H29)","v":""}]
[null,null,null,null,null,null,null,null,null,null,null,null,"年",null,null,null,null,null,null,null,"月",null,null,null,null,null,null,null,"日"]
[]
[null,"供給電気\n方 式 ・\n供給電圧",null,null,null,null,{"$f":"IF(入力用!O32=2,入力用!R5,IF(入力用!O32=3,入力用!R6,IF(入力用!O32=4,入力用!R7,IF(入力用!O32=5,入力用!R8,\"\"))))","v":""},null,null,null,null,null,null,null,null,null,null,null,null,null,null,null,null,null,null,null,null,null,null,null,null,null,null,"ﾌﾘｰｴﾘｱ\n計器払\n出希望\n事業所名",null,null,null,null,null,{"$f":"IF(入力用!C33=\"\",\"\",入力用!C33)","v":""},null,null,null,null,null,null,null,null,null,null,null,null,null,null,null,null,null,null,"本契約前\nの臨時契\n約の有無",null,null,null,null,{"$f":"IF(入力用!O34=2,入力用!S5,IF(入力用!O34=3,入力用!S6,\"\"))","v":""},null,null,null,"臨時受付№(",null,null,null,null,null,null,null,null,null,null,null,")",null,"引込以下工事",null,null,null,null,null,null,"要",null,null,null,null,null,"不要"]
[null,null,null,null,null,null,null,null,null,null,null,null,null,null,null,null,null,null,null,null,null,null,null,null,null,null,null,null,null,null,null,null,null,null,null,null,null,null,null,null,null,null,null,null,null,null,null,null,null,null,null,null,null,null,null,null,null,null,null,null,null,null,null,null,null,null,null,null,null,null,null,null,null,null,null,null,null,null,null,null,null,null,null,null,null,null,null,null,null,null,null,null,null,null,null,null,null,null,null,null,null,"図面照査"]
[]
[null,null,null,null,null,null,null,null,null,null,null,null,null,null,null,null,null,null,null,null,null,null,null,null,null,null,null,null,null,null,null,null,null,null,null,null,null,null,null,null,null,null,null,null,null,null,null,null,null,null,null,null,null,null,null,null,null,null,null,null,null,null,null,null,null,null,null,null,null,null,null,null,null,null,null,null,null,null,null,null,null,"メッセンジャー",null,null,null,null,null,null," №"]
[]
[]
[null,"契約\n決定\n方法",null,null,null,null,{"$f":"IF(入力用!O35=2,入力用!T5,IF(入力用!O35=3,入力用!T6,IF(入力用!O35=4,入力用!T7,IF(入力用!O35=5,入力用!T8,IF(入力用!O35=6,入力用!T9,\"\")))))","v":""},null,null,null,null,null,null,null,null,null,null,null,null,null,null,null,null,null,null,null,null,null,null,null,"主開閉器・\n電流制限器\nの定格電流",null,null,null,null,null,null,null,null,null,null,null,null,null,"適用業種・\n容　量　別\n回路数内訳",null,null,null,null,null,{"$f":"IF(入力用!P38=\"\",\"\",入力用!P38)","v":""},null,null,null,null,null,null,null,null,null,{"$f":"IF(入力用!C38=\"\",\"\",入力用!C38)","v":""},null,null,"回路",null,null,null,null,null,null,null,null,null,null,null,null,null,null,null,null,null,"外 線 工 事",null,null,null,null,null,null," №"]
[null,null,null,null,null,null,null,null,null,null,null,null,null,null,null,null,null,null,null,null,null,null,null,null,null,null,null,null,null,null,null,null,null,null,null,null,null,{"$f":"IF(入力用!C36=\"\",\"\",入力用!C36)","v":""}]
[null,null,null,null,null,null,null,null,null,null,null,null,null,null,null,null,null,null,null,null,null,null,null,null,null,null,null,null,null,null,null,null,null,null,null,null,null,null,null,null,null,null,null,null,null,null,null,null,null,null,{"$f":"IF(入力用!P40=\"\",\"\",入力用!P40)","v":""},null,null,null,null,null,null,null,null,null,{"$f":"IF(入力用!C40=\"\",\"\",入力用!C40)","v":""},null,null,"回路"]
[null,null,null,null,null,null,null,null,null,null,null,null,null,null,null,null,null,null,null,null,null,null,null,null,null,null,null,null,null,null,null,null,null,null,null,null,null,null,null,null,null,null,null,null,null,null,null,null,null,null,null,null,null,null,null,null,null,null,null,null,null,null,null,null,null,null,null,null,null,null,null,null,null,null,null,null,null,null,null,null,null,null,null,null,null,null,null,null,null,null,null,null,null,null,null,null,null,null,null,null,null,"外線設計"]
[null,null,null,null,null,null,null,null,null,null,null,null,null,null,null,null,null,null,null,null,null,null,null,null,null,null,null,null,null,null,null,null,null,null,null,null,null,null,null,null,null,null,"Ａ",null,null,null,null,null,null,null,{"$f":"IF(入力用!P42=\"\",\"\",入力用!P42)","v":""},null,null,null,null,null,null,null,null,null,{"$f":"IF(入力用!C42=\"\",\"\",入力用!C42)","v":""},null,null,"回路"]
[]
[null,"契約\n負荷\n設備\n内訳",null,null,null,null,"電      　灯",null,null,null,null,null,null,null,null,null,null,null,"小　　　型　　　機　　　器　※HPはヒートポンプ",null,null,null,null,null,null,null,null,null,null,null,null,null,null,null,null,null,null,null,null,null,null,null,null,null,null,null,null,null,null,null,null,null,null,null,null,null,null,null,null,null,"回路数",null,null,null,null,null,null,"合　計　容　量"]
[]
[null,null,null,null,null,null,{"$f":"IF(入力用!C43=\"\",\"\",入力用!C43)","v":""},null,null,null,null,null,null,null,null,"灯",null,null,{"$f":"IF(入力用!C45=\"\",\"\",入力用!C45)","v":""},null,null,null,null,null,null,null,null,"個",null,null,"うちＩＨクッキングヒーター",null,null,null,null,null,null,null,null,null,null,null,null,null,null,{"$f":"IF(入力用!C47=\"\",\"\",入力用!C47)","v":""},null,null,"台",null,{"$f":"IF(入力用!D48=\"\",\"\",入力用!D48)","v":""},null,null,null,null,null,null,"ＶＡ",null,null,{"$f":"IF(入力用!C56=\"\",\"\",入力用!C56)","v":""},null,null,null,null,null,null,{"$f":"IF(OR(入力用!O35=2,入力用!O35=3,入力用!O35=6,入力用!O36=1,入力用!Q48=0),\"\",入力用!Q48)","v":""}]
[]
[null,null,null,null,null,null,null,null,null,null,null,null,null,null,null,null,null,null,null,null,null,null,null,null,null,null,null,null,null,null,"(メーカー)",null,null,null,null,null,{"$f":"IF(入力用!E49=\"\",\"\",入力用!E49)","v":""},null,null,null,null,null,null,"(型式)",null,null,null,{"$f":"IF(入力用!E50=\"\",\"\",入力用!E50)","v":""}]
[null,null,null,null,null,null,null,null,null,null,null,null,null,null,null,null,null,null,null,null,null,null,null,null,null,null,null,null,null,null,null,null,null,null,null,null,null,null,null,null,null,null,null,null,null,null,null,null,null,null,null,null,null,null,null,null,null,null,null,null,null,null,null,null,null,null,null,null,null,null,null,null,null,null,null,null,null,null,null,null,{"$f":"IF(入力用!O30<4,\"契約電流\",\"契約容量\")","v":"契約電流"},null,null,null,null,null,null,null,null,{"$f":"IF(入力用!O36=1,\"\",IF(入力用!Q47=\"\",\"\",入力用!Q47))","v":""},null,null,null,null,null,null,{"$f":"IF(入力用!O30<4,\"A\",\"kVA\")","v":"A"},null,null,null,null,"負担金計算"]
[null,null,null,null,null,null,{"$f":"IF(入力用!C44=\"\",\"\",入力用!C44)","v":""},null,null,null,null,null,null,null,null,"ＶＡ",null,null,{"$f":"IF(入力用!C46=\"\",\"\",入力用!C46)","v":""},null,null,null,null,null,null,null,null,"ＶＡ",null,null,{"$f":"IF(入力用!O51=2,入力用!O11,IF(入力用!O51=3,入力用!O12,IF(入力用!O51=4,入力用!K51,\"\")))","v":""},null,null,null,null,null,null,null,null,null,null,null,null,null,null,{"$f":"IF(入力用!C52=\"\",\"\",入力用!C52)","v":""},null,null,"台",null,{"$f":"IF(入力用!D53=\"\",\"\",入力用!D53)","v":""},null,null,null,null,null,null,"ＶＡ",null,null,null,null,null,null,null,null,null,null,null,null,null,null,null,null,null,null,"ＶＡ"]
[]
[null,null,null,null,null,null,null,null,null,null,null,null,null,null,null,null,null,null,null,null,null,null,null,null,null,null,null,null,null,null,"(メーカー)",null,null,null,null,null,{"$f":"IF(入力用!E54=\"\",\"\",入力用!E54)","v":""},null,null,null,null,null,null,"(型式)",null,null,null,{"$f":"IF(入力用!E55=\"\",\"\",入力用!E55)","v":""}]
[]
[null,"異動種別",null,null,"・ 新設　　 　・ 減少　 　　　・ 転出",null,null,null,null,null,null,null,null,null,null,null,null,null,null,null,null,null,null,null,null,null,null,null,"供給地点特定番号",null,null,null,null,null,null,null,"発行\n回数",null,null,"支店",null,"ﾌﾞﾛｯｸ",null,null,"住所",null,null,null,null,"街区",null,null,"契約№",null,null,null,null,"枝番",null,null,"種別",null,null,null,null,null,"送電日\n（異動日）"]
[]
[null,null,null,null,"・ 種変(+)　　・ 設備撤去　　・ 名義変更"]
[null,null,null,null,null,null,null,null,null,null,null,null,null,null,null,null,null,null,null,null,null,null,null,null,null,null,null,null,null,null,null,null,null,null,null,null,null,null,null,null,null,null,null,null,null,null,null,null,null,null,null,null,null,null,null,null,null,null,null,null,null,null,null,null,null,null,null,null,null,null,null,null,null,null,null,null,null,null,null,null,null,null,null,null,null,null,null,null,null,null,null,null,null,null,null,null,null,null,null,null,null,"負担金入金"]
[null,null,null,null,"・ ｺｰﾄﾞ変(+)　・ 設備変更　　 ・その他",null,null,null,null,null,null,null,null,null,null,null,null,null,null,null,null,null,null,null,null,null,null,null,null,null,null,"010",null,null,null,null,null,null,null,null,null,null,null,null,null,null,null,null,null,null,null,null,null,null,null,null,null,null,null,null,{"$f":"AK41","v":""},null,null,"00"]
[]
[null,null,null,null,"・ 増加　　 　・ 転入　　　　（　　　　）",null,null,null,null,null,null,null,null,null,null,null,null,null,null,null,null,null,null,null,null,null,null,null,null,null,null,null,null,null,null,null,null,null,null,null,null,null,null,null,null,null,null,null,null,null,null,null,null,null,null,null,null,null,null,null,null,null,null,null,null,null,null,null,null,null,null,"年",null,null,null,"月",null,null,null,"日"]
[]
[null,"業種",null,null,"従量電灯",null,null,null,null,null,null,null,null,null,"・ｱﾊﾟｰﾄ・寮",null,null,null,null,null,null,null,null,null,"・工場",null,null,null,null,null,null,null,null,null,"・旅館・飲食店",null,null,null,null,null,null,null,null,null,"・劇場・娯楽場",null,null,null,null,null,null,null,null,null,"公衆街路灯",null,null,null,null,null,null,null,null,null,"・信号・表示灯",null,null,null,null,null,null,null,null,null,"契　約\n世帯数"]
[]
[null,null,null,null,"・住宅",null,null,null,null,null,null,null,null,null,"・商店",null,null,null,null,null,null,null,null,null,"・事務所",null,null,null,null,null,null,null,null,null,"・病院・学校",null,null,null,null,null,null,null,null,null,"・その他",null,null,null,null,null,null,null,null,null,"・街路灯",null,null,null,null,null,null,null,null,null,"・その他",null,null,null,null,null,null,null,null,null,null,null,null,null,null,null,null,"世帯"]
[null,null,null,null,null,null,null,null,null,null,null,null,null,null,null,null,null,null,null,null,null,null,null,null,null,null,null,null,null,null,null,null,null,null,null,null,null,null,null,null,null,null,null,null,null,null,null,null,null,null,null,null,null,null,null,null,null,null,null,null,null,null,null,null,null,null,null,null,null,null,null,null,null,null,null,null,null,null,null,null,null,null,null,null,null,null,null,null,null,null,null,null,null,null,null,null,null,null,null,null,null,"計器払出"]
[null,"入居区分",null,null,"・入居",null,null,null,null,null,"供給\n電気\n方式",null,null,{"$f":"IF(入力用!O32=2,\"単相2線100V\",IF(入力用!O32=3,\"単相2線200V\",IF(入力用!O32=4,\"単相3線100V\",IF(入力用!O32=5,\"3相3線200V\",\"\"))))","v":""},null,null,null,null,null,null,null,null,"計量\n電気\n方式",null,null,"・単相2線100Ｖ",null,null,null,null,null,null,null,null,"系統連系情報",null,null,null,null,"・系統連系有　　・系統連系無",null,null,null,null,null,null,null,null,null,null,null,null,null,null,null,null,null,null,null,null,null,null,null,null,null,null,null,null,null,null,null,null,null,null,null,null,null,null,null,"引込柱№",null,null,"画",null,null,"区",null,null,"図",null,null,"番",null,null,"の",null,null,"号"]
[]
[null,null,null,null,null,null,null,null,null,null,null,null,null,null,null,null,null,null,null,null,null,null,null,null,null,"・単相2線200Ｖ"]
[]
[null,null,null,null,"・未入居",null,null,null,null,null,null,null,null,null,null,null,null,null,null,null,null,null,null,null,null,"・単相3線100Ｖ",null,null,null,null,null,null,null,null,null,null,null,null,null,"・逆潮流有　　・逆潮流無"]
[]
[null,null,null,null,null,null,null,null,null,null,null,null,null,null,null,null,null,null,null,null,null,null,null,null,null,"・3相3線200Ｖ "]
[null,null,null,null,null,null,null,null,null,null,null,null,null,null,null,null,null,null,null,null,null,null,null,null,null,null,null,null,null,null,null,null,null,null,null,null,null,null,null,null,null,null,null,null,null,null,null,null,null,null,null,null,null,null,null,null,null,null,null,null,null,null,null,null,null,null,null,null,null,null,null,null,null,null,null,null,null,null,null,null,null,null,null,null,null,null,null,null,null,null,null,null,null,null,null,null,null,null,null,null,null,"送電申込受付"]
[null,"計量\n区分",null,null,"・通常計量　 ・1契約多計量",null,null,null,null,null,null,null,null,null,null,null,null,null,null,null,null,null,null,"計器取付位置",null,null,"・屋外　　　・屋内",null,null,null,null,null,null,null,null,null,null,null,null,null,null,"ＣＴ取付位置",null,null,"・屋外　　　・屋内",null,null,null,null,null,null,null,null,null,null,null,null,null,null,"ＣＴ\n２次\n亘長"]
[]
[null,null,null,null,null,null,null,null,null,null,null,null,null,null,null,null,null,null,null,null,null,null,null,null,null,null,"・屋外柱　　・集合盤",null,null,null,null,null,null,null,null,null,null,null,null,null,null,null,null,null,"・屋外柱　　・集合盤"]
[null,null,null,null,"・1次側計量　・未計器扱い"]
[null,null,null,null,null,null,null,null,null,null,null,null,null,null,null,null,null,null,null,null,null,null,null,null,null,null,"・ｷｭｰﾋﾞｸﾙ　 ・受電室",null,null,null,null,null,null,null,null,null,null,null,null,null,null,null,null,null,"・ｷｭｰﾋﾞｸﾙ　 ・受電室",null,null,null,null,null,null,null,null,null,null,null,null,null,null,null,null,null,null,null,null,null,"ｍ"]
[]
[null,"支払者\n番号",null,null,null,null,null,null,null,null,null,null,null,null,null,null,null,null,null,null,null,null,"まとめ\n請求",null,null,null,"・有　　　・無",null,null,null,null,null,null,null,null,null,null,null,null,null,"支払\n番号",null,null,null,null,null,null,null,null,null,null,null,null,null,null,null,null,"決済\nアクセスキー",null,null,null,null,null,null,null,null,null,null,null,null,null,null,null,null,null,null,null,null,null,null,"請求書\n要　否",null,null,null,"・否　　　・要"]
[null,null,null,null,null,null,null,null,null,null,null,null,null,null,null,null,null,null,null,null,null,null,null,null,null,null,null,null,null,null,null,null,null,null,null,null,null,null,null,null,null,null,null,null,null,null,null,null,null,null,null,null,null,null,null,null,null,null,null,null,null,null,null,null,null,null,null,null,null,null,null,null,null,null,null,null,null,null,null,null,null,null,null,null,null,null,null,null,null,null,null,null,null,null,null,null,null,null,null,null,null,"契約確認"]
[]
[]
[]
[]
[]
[]
[]
[null,null,null,null,null,null,null,null,null,null,null,null,null,null,null,null,null,null,null,null,null,null,null,null,null,null,null,null,null,null,null,null,null,null,null,null,null,null,null,null,null,null,null,null,null,null,null,null,null,null,null,null,null,null,null,null,null,null,null,null,null,null,null,null,null,null,null,null,null,null,null,null,null,null,null,null,null,null,null,null,null,null,null,null,null,null,null,null,null,null,null,null,null,null,null,null,null,null,null,null,null,"上長確認"]
[]
[null,"＜備考＞"]
[]
[]
[]
[]
[]
[null,null,null,null,null,null,null,null,null,null,null,null,null,null,null,null,null,null,null,null,null,null,null,null,null,null,null,null,null,null,null,null,null,null,null,null,null,null,null,null,null,null,null,null,null,null,null,null,null,null,null,null,null,null,null,null,null,null,null,null,null,null,null,null,null,null,null,null,null,null,null,null,null,null,null,null,null,null,null,null,null,null,null,null,null,null,null,null,null,null,null,null,null,null,null,null,null,null,null,null,null,"竣工調査",null,"　"]
[]
[]
[]
[]
[]
[]
[]
[null,null,null,null,null,null,null,null,null,null,null,null,null,null,null,null,null,null,null,null,null,null,null,null,null,null,null,null,null,null,null,null,null,null,null,null,null,null,null,null,null,null,null,null,null,null,null,null,null,null,null,null,null,null,null,null,null,null,null,null,null,null,null,null,null,null,null,null,null,null,null,null,null,null,null,null,null,null,null,null,null,null,null,null,null,null,null,null,null,null,null,null,null,null,null,null,null,null,null,null,null,"完了確認"]
[]
[]
[]
[]
[]
[]
[]
[null,null,null,null,null,null,null,null,null,null,null,null,null,null,null,null,null,null,null,null,null,null,null,null,null,null,null,null,null,null,null,null,null,null,null,null,null,null,null,null,null,null,null,null,null,null,null,null,null,null,null,null,null,null,null,null,null,null,null,null,null,null,null,null,null,null,null,null,null,null,null,null,null,null,null,null,null,null,null,null,null,null,null,null,null,null,null,null,null,null,null,null,null,null,null,null,null,null,null,null,null,"完了連絡"]
[]
[]
[]
[]
[]
[]
[]
[null,null,null,null,null,null,null,null,null,null,null,null,null,null,null,null,null,null,null,null,null,null,null,null,null,null,null,null,null,null,null,null,null,null,null,null,null,null,null,null,null,null,null,null,null,null,null,null,null,null,null,null,null,null,null,null,null,null,null,null,null,null,null,null,null,null,null,null,null,null,null,null,null,null,null,null,null,null,null,null,null,null,null,null,null,null,null,null,null,null,null,null,null,null,null,null,null,null,null,null,null,"ＤＭ送付"]
[]
[]
[]
[]
[]
[]
[]
[null,null,null,null,null,null,null,null,null,null,null,null,null,null,null,null,null,null,null,null,null,null,null,null,null,null,null,null,null,null,null,null,null,null,null,null,null,null,null,null,null,null,null,null,null,null,null,null,null,null,null,null,null,null,null,null,null,null,null,null,null,null,null,null,null,null,null,null,null,null,null,null,null,null,null,null,null,null,null,null,null,null,null,null,null,null,null,null,null,null,null,null,null,null,null,null,null,null,null,null,null,"照合"]
[]
[]
[]
[]
[null,null,null,null,null,null,null,null,null,null,null,null,null,null,null,null,null,null,null,null,"他契約登録",null,"要 ・ 不要",null,null,null,null,null,null,null,"他契約登録番号",null,null,null,null,null,null,null,null,null,null,null,null,null,null,null,null,null,null,null,null,null,"　□供給地点他契約登録済"]
[null,null,null,null,null,null,null,null,null,null,null,null,null,null,null,null,null,null,null,null,null,null,null,null,null,null,null,null,null,null,null,null,null,null,null,null,null,null,null,null,null,null,null,null,null,null,null,null,null,null,null,null,null,null,null,null,null,null,null,null,null,null,null,null,null,null,null,null,null,null,null,null,null,null,null,null,null,null,null,null,null,null,null,null,"取　外　計　器"]
[]
[null,null,null,null,null,null,null,null,null,null,null,null,null,null,null,null,null,null,null,null,null,null,null,null,null,null,null,null,null,null,null,null,null,null,null,null,null,null,null,null,null,null,null,null,null,null,null,null,null,null,null,null,null,null,null,null,null,null,null,null,null,null,null,null,null,null,null,null,null,null,null,null,null,null,null,null,null,null,null,null,"計器\n増設",null,null,null,"指示数"]
[]
[null,null,null,null,null,null,null,null,null,null,null,null,null,null,null,null,null,null,null,null,null,null,null,null,null,null,null,null,null,null,null,null,null,null,null,null,null,null,null,null,null,null,null,null,null,null,null,null,null,null,null,null,null,null,null,null,null,null,null,null,null,null,null,null,null,null,null,null,null,null,null,null,null,null,null,null,null,null,null,null,null,null,null,null,null,null,"ﾋﾟｰｸ/午後"]
[]
[null,null,null,null,null,null,null,null,null,null,null,null,null,null,null,null,null,null,null,null,null,null,null,null,null,null,null,null,null,null,null,null,null,null,null,null,null,null,null,null,null,null,null,null,null,null,null,null,null,null,null,null,null,null,null,null,null,null,null,null,null,null,null,null,null,null,null,null,null,null,null,null,null,null,null,null,null,null,null,null,null,null,null,null,null,null,"夜　間"]
[]
[null,null,null,null,null,null,null,null,null,null,null,null,null,null,null,null,null,null,null,null,null,null,null,null,null,null,null,null,null,null,null,null,null,null,null,null,null,null,null,null,null,null,null,null,null,null,null,null,null,null,null,null,null,null,null,null,null,null,null,null,null,null,null,null,null,null,null,null,null,null,null,null,null,null,null,null,null,null,null,null,null,null,null,null,"計器№",null,null,null,null,null,null,null,null,null,"乗率"]
[]
[]
["北　海　道　電　力　ネ　ッ　ト　ワ　ー　ク　株　式　会　社"]
[]
[]
[]
[]
[]
[]
[]
[]
[]
[]
[]
[]
[]
[]
[]
[]
[]
[]
[null,null,null,null,null,null,null,null,null,null,null,null,null,null,null,null,null,null,null,null,null,null,null,null,null,null,null,null,null,null,null,null,null,null,null,null,null,null,null,null,null,null,null,null,null,null,null,null,null,null,null,null,null,null,null,null,null,null,null,null,null,null,null,null,null,null,null,null,null,null,null,null,null,null,null,null,null,null,null,null,null,null,null,null,null,null,null,null,null,null,null,null,null,null,null,null,null,null,null,null,null,"受付"]
[]
[]
[]
[]
[]
[]
[]
[null,null,null,null,null,null,null,null,null,null,null,null,null,null,null,null,null,null,null,null,null,null,null,null,null,null,null,null,null,null,null,null,null,null,null,null,null,null,null,null,null,null,null,null,null,null,null,null,null,null,null,null,null,null,null,null,null,null,null,null,null,null,null,null,null,null,null,null,null,null,null,null,null,null,null,null,null,null,null,null,null,null,null,null,null,null,null,null,null,null,null,null,null,null,null,null,null,null,null,null,null,"図面照査"]
[]
[]
[]
[]
[]
[]
[]
[null,null,null,null,null,null,null,null,null,null,null,null,null,null,null,null,null,null,null,null,null,null,null,null,null,null,null,null,null,null,null,null,null,null,null,null,null,null,null,null,null,null,null,null,null,null,null,null,null,null,null,null,null,null,null,null,null,null,null,null,null,null,null,null,null,null,null,null,null,null,null,null,null,null,null,null,null,null,null,null,null,null,null,null,null,null,null,null,null,null,null,null,null,null,null,null,null,null,null,null,null,"外線設計"]
[]
[]
[]
[]
[]
[]
[]
[null,null,null,null,null,null,null,null,null,null,null,null,null,null,null,null,null,null,null,null,null,null,null,null,null,null,null,null,null,null,null,null,null,null,null,null,null,null,null,null,null,null,null,null,null,null,null,null,null,null,null,null,null,null,null,null,null,null,null,null,null,null,null,null,null,null,null,null,null,null,null,null,null,null,null,null,null,null,null,null,null,null,null,null,null,null,null,null,null,null,null,null,null,null,null,null,null,null,null,null,null,"負担金計算"]
[]
[]
[]
[]
[]
[]
[]
[null,null,null,null,null,null,null,null,null,null,null,null,null,null,null,null,null,null,null,null,null,null,null,null,null,null,null,null,null,null,null,null,null,null,null,null,null,null,null,null,null,null,null,null,null,null,null,null,null,null,null,null,null,null,null,null,null,null,null,null,null,null,null,null,null,null,null,null,null,null,null,null,null,null,null,null,null,null,null,null,null,null,null,null,null,null,null,null,null,null,null,null,null,null,null,null,null,null,null,null,null,"負担金入金"]
[]
[]
[]
[]
[]
[]
[]
[null,null,null,null,null,null,null,null,null,null,null,null,null,null,null,null,null,null,null,null,null,null,null,null,null,null,null,null,null,null,null,null,null,null,null,null,null,null,null,null,null,null,null,null,null,null,null,null,null,null,null,null,null,null,null,null,null,null,null,null,null,null,null,null,null,null,null,null,null,null,null,null,null,null,null,null,null,null,null,null,null,null,null,null,null,null,null,null,null,null,null,null,null,null,null,null,null,null,null,null,null,"計器払出"]
[]
[]
[]
[]
[]
[]
[]
[null,null,null,null,null,null,null,null,null,null,null,null,null,null,null,null,null,null,null,null,null,null,null,null,null,null,null,null,null,null,null,null,null,null,null,null,null,null,null,null,null,null,null,null,null,null,null,null,null,null,null,null,null,null,null,null,null,null,null,null,null,null,null,null,null,null,null,null,null,null,null,null,null,null,null,null,null,null,null,null,null,null,null,null,null,null,null,null,null,null,null,null,null,null,null,null,null,null,null,null,null,"送電申込受付"]
[]
[]
[]
[]
[]
[]
[]
[null,null,null,null,null,null,null,null,null,null,null,null,null,null,null,null,null,null,null,null,null,null,null,null,null,null,null,null,null,null,null,null,null,null,null,null,null,null,null,null,null,null,null,null,null,null,null,null,null,null,null,null,null,null,null,null,null,null,null,null,null,null,null,null,null,null,null,null,null,null,null,null,null,null,null,null,null,null,null,null,null,null,null,null,null,null,null,null,null,null,null,null,null,null,null,null,null,null,null,null,null,"契約確認"]
[]
[]
[]
[]
[]
[]
[]
[null,null,null,null,null,null,null,null,null,null,null,null,null,null,null,null,null,null,null,null,null,null,null,null,null,null,null,null,null,null,null,null,null,null,null,null,null,null,null,null,null,null,null,null,null,null,null,null,null,null,null,null,null,null,null,null,null,null,null,null,null,null,null,null,null,null,null,null,null,null,null,null,null,null,null,null,null,null,null,null,null,null,null,null,null,null,null,null,null,null,null,null,null,null,null,null,null,null,null,null,null,"調査"]
[]
[]
[]
[]
[]
[]
[]
[null,null,null,null,null,null,null,null,null,null,null,null,null,null,null,null,null,null,null,null,null,null,null,null,null,null,null,null,null,null,null,null,null,null,null,null,null,null,null,null,null,null,null,null,null,null,null,null,null,null,null,null,null,null,null,null,null,null,null,null,null,null,null,null,null,null,null,null,null,null,null,null,null,null,null,null,null,null,null,null,null,null,null,null,null,null,null,null,null,null,null,null,null,null,null,null,null,null,null,null,null,"完了登録依頼",null,null,null,null,null,null,null,"　月　次向"]
[]
[]
[]
[]
[]
[]
[]
[null,null,null,null,null,null,null,null,null,null,null,null,null,null,null,null,null,null,null,null,null,null,null,null,null,null,null,null,null,null,null,null,null,null,null,null,null,null,null,null,null,null,null,null,null,null,null,null,null,null,null,null,null,null,null,null,null,null,null,null,null,null,null,null,null,null,null,null,null,null,null,null,null,null,null,null,null,null,null,null,null,null,null,null,null,null,null,null,null,null,null,null,null,null,null,null,null,null,null,null,null,"内容確認"]
[]
[]
[]
[]
[]
[]
[]
[null,null,null,null,null,null,null,null,null,null,null,null,null,null,null,null,null,null,null,null,null,null,null,null,null,null,null,null,null,null,null,null,null,null,null,null,null,null,null,null,null,null,null,null,null,null,null,null,null,null,null,null,null,null,null,null,null,null,null,null,null,null,null,null,null,null,null,null,null,null,null,null,null,null,null,null,null,null,null,null,null,null,null,null,null,null,null,null,null,null,null,null,null,null,null,null,null,null,null,null,null,"完了登録"]
[]
[]
[]
[]
[]
[]
[]
[null,null,null,null,null,null,null,null,null,null,null,null,null,null,null,null,null,null,null,null,null,null,null,null,null,null,null,null,null,null,null,null,null,null,null,null,null,null,null,null,null,null,null,null,null,null,null,null,null,null,null,null,null,null,null,null,null,null,null,null,null,null,null,null,null,null,null,null,null,null,null,null,null,null,null,null,null,null,null,null,null,null,null,null,null,null,null,null,null,null,null,null,null,null,null,null,null,null,null,null,null,"照合"]
[]
[]
[]
[]
[]
[]
[]
[null,null,null,null,null,null,null,null,null,null,null,null,null,null,null,null,null,null,null,null,null,null,null,null,null,null,null,null,null,null,null,null,null,null,null,null,null,null,null,null,null,null,null,null,null,null,null,null,null,null,null,null,null,null,null,null,null,null,null,null,null,null,null,null,null,null,null,null,null,null,null,null,null,null,null,null,null,null,null,null,null,null,null,null,null,null,null,null,null,null,null,null,null,null,null,null,null,null,null,null,null,"ＤＭ送付"]